Workbook

Sheet EFV Calculator
A1: Analysis Notes:
A2: Type Notes Here
R3: Min.Trip SCFH | S3: Max.Trip SCFH | T3: Protected EQ FT
Q4: P
Q5: 5 | R5: =VLOOKUP(Q5,'Data and Formulas'!$K$20:$Q$145,4) -> 424.1856034 | S5: =VLOOKUP(Q5,'Data and Formulas'!$K$20:$Q$145,5) -> 636.278405 | T5: =VLOOKUP(Q5,'Data and Formulas'!$K$20:$Q$145,7) -> 3819.142788
R6: =VLOOKUP(Q6,'Data and Formulas'!$K$20:$Q$145,4) -> 366.3902976 | S6: =VLOOKUP(Q6,'Data and Formulas'!$K$20:$Q$145,5) -> 549.5854463 | T6: =VLOOKUP(Q6,'Data and Formulas'!$K$20:$Q$145,7) -> 0
A7: Minimum EFV Inlet Pressure (psig): | E7: 10 | Q7: 10 | R7: =VLOOKUP(Q7,'Data and Formulas'!$K$20:$Q$145,4) -> 475.0000022 | S7: =VLOOKUP(Q7,'Data and Formulas'!$K$20:$Q$145,5) -> 712.5000032 | T7: =VLOOKUP(Q7,'Data and Formulas'!$K$20:$Q$145,7) -> 7878.283218
R8: =VLOOKUP(Q8,'Data and Formulas'!$K$20:$Q$145,4) -> 366.3902976 | S8: =VLOOKUP(Q8,'Data and Formulas'!$K$20:$Q$145,5) -> 549.5854463 | T8: =VLOOKUP(Q8,'Data and Formulas'!$K$20:$Q$145,7) -> 0
A9: Gas Specific Gravity: | E9: 0.6 | Q9: 15 | R9: =VLOOKUP(Q9,'Data and Formulas'!$K$20:$Q$145,4) -> 520.8805794 | S9: =VLOOKUP(Q9,'Data and Formulas'!$K$20:$Q$145,5) -> 781.3208691 | T9: =VLOOKUP(Q9,'Data and Formulas'!$K$20:$Q$145,7) -> 11652.61476
R10: =VLOOKUP(Q10,'Data and Formulas'!$K$20:$Q$145,4) -> 366.3902976 | S10: =VLOOKUP(Q10,'Data and Formulas'!$K$20:$Q$145,5) -> 549.5854463 | T10: =VLOOKUP(Q10,'Data and Formulas'!$K$20:$Q$145,7) -> 0
A11: Gas Temperature (°F): | E11: 60 | Q11: 20 | R11: =VLOOKUP(Q11,'Data and Formulas'!$K$20:$Q$145,4) -> 563.0347715 | S11: =VLOOKUP(Q11,'Data and Formulas'!$K$20:$Q$145,5) -> 844.5521573 | T11: =VLOOKUP(Q11,'Data and Formulas'!$K$20:$Q$145,7) -> 15279.04549
R12: =VLOOKUP(Q12,'Data and Formulas'!$K$20:$Q$145,4) -> 366.3902976 | S12: =VLOOKUP(Q12,'Data and Formulas'!$K$20:$Q$145,5) -> 549.5854463 | T12: =VLOOKUP(Q12,'Data and Formulas'!$K$20:$Q$145,7) -> 0
A13: Min Trip Flow (SCFH): | E13: ='Data and Formulas'!AE4 -> 475.0000022 | Q13: 30 | R13: =VLOOKUP(Q13,'Data and Formulas'!$K$20:$Q$145,4) -> 639.05501 | S13: =VLOOKUP(Q13,'Data and Formulas'!$K$20:$Q$145,5) -> 958.5825151 | T13: =VLOOKUP(Q13,'Data and Formulas'!$K$20:$Q$145,7) -> 22325.38099
A14: Max Trip Flow (SCFH): | E14: ='Data and Formulas'!AE5 -> 712.5000032 | Q14: 40 | R14: =VLOOKUP(Q14,'Data and Formulas'!$K$20:$Q$145,4) -> 706.9472808 | S14: =VLOOKUP(Q14,'Data and Formulas'!$K$20:$Q$145,5) -> 1060.420921 | T14: =VLOOKUP(Q14,'Data and Formulas'!$K$20:$Q$145,7) -> 29268.36298
A15: Cushion between Min Trip Flow and Load: | E15: 0.1 | Q15: 50 | R15: =VLOOKUP(Q15,'Data and Formulas'!$K$20:$Q$145,4) -> 768.8677452 | S15: =VLOOKUP(Q15,'Data and Formulas'!$K$20:$Q$145,5) -> 1153.301618 | T15: =VLOOKUP(Q15,'Data and Formulas'!$K$20:$Q$145,7) -> 36196.46633
A16: Max Anticipated Load (SCFH): | E16: =E13/(1+E15) -> 431.8181838 | Q16: 60 | R16: =VLOOKUP(Q16,'Data and Formulas'!$K$20:$Q$145,4) -> 826.1602517 | S16: =VLOOKUP(Q16,'Data and Formulas'!$K$20:$Q$145,5) -> 1239.240378 | T16: =VLOOKUP(Q16,'Data and Formulas'!$K$20:$Q$145,7) -> 43145.95596
A17: Max. Equiv. Service Line Protected (FT): | E17: ='Data and Formulas'!AE9 -> 7878.283218 | Q17: 70 | R17: =VLOOKUP(Q17,'Data and Formulas'!$K$20:$Q$145,4) -> 879.7294547 | S17: =VLOOKUP(Q17,'Data and Formulas'!$K$20:$Q$145,5) -> 1319.594182 | T17: =VLOOKUP(Q17,'Data and Formulas'!$K$20:$Q$145,7) -> 50132.71528
Q18: 80 | R18: =VLOOKUP(Q18,'Data and Formulas'!$K$20:$Q$145,4) -> 930.2188266 | S18: =VLOOKUP(Q18,'Data and Formulas'!$K$20:$Q$145,5) -> 1395.32824 | T18: =VLOOKUP(Q18,'Data and Formulas'!$K$20:$Q$145,7) -> 57163.64136
A19: Desired Load: | E19: 390 | Q19: 90 | R19: =VLOOKUP(Q19,'Data and Formulas'!$K$20:$Q$145,4) -> 978.1054224 | S19: =VLOOKUP(Q19,'Data and Formulas'!$K$20:$Q$145,5) -> 1467.158134 | T19: =VLOOKUP(Q19,'Data and Formulas'!$K$20:$Q$145,7) -> 64241.34615
A20: Cushion between Min Trip Flow and DesiredLoad: | E20: =IF(E13>E19,E13/E19-1,(E19/E13-1)*-1) -> 0.2179487235 | Q20: 100 | R20: =VLOOKUP(Q20,'Data and Formulas'!$K$20:$Q$145,4) -> 1023.754545 | S20: =VLOOKUP(Q20,'Data and Formulas'!$K$20:$Q$145,5) -> 1535.631818 | T20: =VLOOKUP(Q20,'Data and Formulas'!$K$20:$Q$145,7) -> 71366.29862
A21: Desired Min Pressure at Regulator (psig): | E21: 2.5 | Q21: 125 | R21: =VLOOKUP(Q21,'Data and Formulas'!$K$20:$Q$145,4) -> 1129.836824 | S21: =VLOOKUP(Q21,'Data and Formulas'!$K$20:$Q$145,5) -> 1694.755236 | T21: =VLOOKUP(Q21,'Data and Formulas'!$K$20:$Q$145,7) -> 89379.99837
A22: Estimated Max Equiv. Service Line Length (FT): | E22: ='Data and Formulas'!I14 -> 18319.56159
B26: System Pressure (psig): | E26: 10
B27: Service Line Length (FT): | E27: 100
A28: ="Reset Time at "&'Data and Formulas'!N5*100&"% Max Allowed Bypass:" -> Reset Time at 45% Max Allowed Bypass: | E28: ='Data and Formulas'!AF11 -> 0.003368055556
A29: Reset Time at | B29: 0.2 | C29: Max Allowed Bypass: | D29: ='Data and Formulas'!AG12 ->  | E29: ='Data and Formulas'!AF12 -> 0.007569444444

Sheet Pressure Drop
B1: EFV Series:
F2: Analysis Notes:
F3: Type Analysis Notes Here
B4: Desired Flow Rate (SCFH): | D4: 400
B6: EFV Min Trip Flow Rate (SCFH): | D6: ='Data and Formulas'!AL11 -> 474.8075776
C8: Inlet Pressure (psig): | D8: 10
B10: Gas Specific Gravity: | D10: 0.6
B12: Gas Temperature (°F): | D12: 60
C14: EFV Pressure Drop
C15: at Desired Flow Rate (IWC): | D15: ='Data and Formulas'!AP11 -> 7.293739189
C17: at Desired Flow Rate (psi): | D17: ='Data and Formulas'!AP12 -> 0.2635030455
C19: at EFV Min Trip Flow Rate (IWC): | D19: ='Data and Formulas'!AP13 -> 10.27698044
C21: at EFV Min Trip Flow Rate (psi): | D21: ='Data and Formulas'!AP14 -> 0.3712794731

Sheet What's New

Sheet Data and Formulas (hidden)
A1: EFV Calculator Data | E1: Calculations & Constants | L1: Lookup Values | P1: Reset Curve Coeff. | T1: Graph Labels | AB1: Graph and Output Data | AH1: Pressure Drop Chart | AJ1: Pressure Drop Data | AN1: Lookup Values
A2: Selected EFV Size | C2: 8 | E2: N7 - Numeric Constant | I2: 1360 | L2: Flow Coefficient - Cv | N2: =VLOOKUP($C$2,$A$20:$E$53,3) -> 2.035890442 | P2: A= | Q2: -0.19 | T2: ="Anticipated Load w/ "&'EFV Calculator'!E15*100&"% Margin" -> Anticipated Load w/ 10% Margin | AB2: Trip Curve Graph | AJ2: Selected EFV Size | AL2: 8 | AN2: Flow Coefficient - Cv | AP2: =VLOOKUP($AL$2,$A$20:$I$53,3,FALSE) -> 2.035890442
A3: Selected Pipe Size | C3: 7 | E3: Temp °R Upstream | I3: =459.67+C8 -> 519.67 | L3: Pressure Drop - DP | N3: =VLOOKUP($C$2,$A$20:$E$53,4) -> 10.29558917 | P3: B= | Q3: 0.1028 | AD3: P | AE3: Pt #1 | AF3: Pt #2 | AJ3: Selected Flowrate | AL3: ='Pressure Drop'!D4 -> 400 | AN3: Pressure Drop - DP (IWC) | AP3: =VLOOKUP($AL$2,$A$20:$I$53,4,FALSE) -> 10.29558917
A4: Adjusted Pipe Size | C4: =IF($C$2<=4,1,$C$3) -> 7 | L4: Max Limit - (% of Min) | N4: =VLOOKUP($C$2,$A$20:$I$53,5) -> 0.5 | P4: C= | Q4: -0.0059 | T4: =AD11*100&"% Bypass Flow" -> 45% Bypass Flow | AB4: Min Trip Flow @ P | AD4: =$C$6 -> 10 | AE4: =VLOOKUP(AD4,$K$20:$O$145,4) -> 475.0000022 | AJ4: Target Pressure | AL4: ='Pressure Drop'!D8 -> 10
E5: Open to Atmosphere Pressure | I5: 0 | L5: Bypass Rate | N5: =VLOOKUP($C$2,$A$20:$I$53,6) -> 0.45 | P5: D= | Q5: 0.000156 | T5: =AD12*100&"% Bypass Flow" -> 20% Bypass Flow | AB5: Max Trip Flow @ P | AD5: =$C$6 -> 10 | AE5: =VLOOKUP(AD5,$K$20:$O$145,5) -> 712.5000032 | AN5: Shift Coefficient A | AP5: =VLOOKUP($AL$2,$A$20:$I$53,7,FALSE) -> 0
A6: Min System Pressure | C6: ='EFV Calculator'!$E$7 -> 10 | P6: E= | Q6: -4e-07 | AB6: Max Anticipated Load | AD6: =MIN($K$20:$K$145) -> 0 | AE6: ='EFV Calculator'!E16 -> 431.8181838 | AF6: ='EFV Calculator'!$E$19 -> 390 | AJ6: Specific Gravity | AL6: ='Pressure Drop'!D10 -> 0.6 | AN6: Shift Coefficient B | AP6: =VLOOKUP($AL$2,$A$20:$I$53,8,FALSE) -> 0
A7: Specific Gravity | C7: ='EFV Calculator'!$E$9 -> 0.6 | E7: Conversion ft3 to dry gal | I7: 6.428 | L7: Pipe Inside Diameter | N7: =VLOOKUP($C$4,$A$57:$E$83,5) -> 1.061 | AD7: =MAX($K$20:$K$145) -> 125 | AE7: =AE6 -> 431.8181838 | AF7: =AF6 -> 390 | AJ7: Gas Temperature (°F) | AL7: ='Pressure Drop'!D12 -> 60 | AN7: Shift Coefficient C | AP7: =VLOOKUP($AL$2,$A$20:$I$53,9,FALSE) -> 0
A8: Gas Temperature (°F) | C8: ='EFV Calculator'!$E$11 -> 60 | E8: Volume added for the Nipple | I8: 15.5 | AB8: Equivalent Service Length Curve Graph
E9: Volume of Pipe (Dry Gallon) | I9: =((N7/2)^2*PI()*C11*12+(I8))*0.003720203 -> 4.004675938 | L9: Shift Coefficient A | N9: =VLOOKUP($C$2,$A$20:$I$53,7) -> 0 | AB9: Equiv. Length @ Inlet Pressure | AD9: =$C$6 -> 10 | AE9: =VLOOKUP(AD9,$K$20:$Q$145,7) -> 7878.283218 | AJ9: Calculations
A10: System Pressure | C10: ='EFV Calculator'!E26 -> 10 | L10: Shift Coefficient B | N10: =VLOOKUP($C$2,$A$20:$I$53,8) -> 0 | AB10: EFV Reset Time Chart
A11: Service Line Length | C11: ='EFV Calculator'!E27 -> 100 | E11: Calculated Minimum Pressure @ max trip | I11: =(1/1849600*(459.67+$C$8)*$C$7*($AE$5^2/($N$2^2*($C$6+14.696)))) -> 0.8360560571 | L11: Shift Coefficient C | N11: =VLOOKUP($C$2,$A$20:$I$53,9) -> 0 | AB11: Target Reset Point | AD11: =N5 -> 0.45 | AE11: =VLOOKUP(AD11,$W$20:$Z$39,3,FALSE) -> 4.85124455 | AF11: =VLOOKUP(AD11,$W$20:$Z$39,4,FALSE) -> 0.003368055556 | AJ11: Min EFV Trip Flow | AL11: =($I$2*$AP$2*(14.67+AL4)*((($AP$3*0.0361)/(14.67+AL4))/($AL$6*(459.67+$AL$7)))^0.5)+($AP$5*AL4^2+$AP$6*AL4+$AP$7) -> 474.8075776 | AN11: DP (IWC) | AP11: =AP12/0.036127292 -> 7.293739189
A12: Estimated Bypass | C12: ='EFV Calculator'!B29 -> 0.2 | E12: Calculated Minimum Pressure @ desired load | I12: =C6-(1/1849600*(459.67+$C$8)*$C$7*(C14^2/($N$2^2*(C6+14.696)))) -> 9.749507417 | AB12: User Reset Point | AD12: =C12 -> 0.2 | AE12: =VLOOKUP(AD12,$W$20:$Y$39,3,FALSE) -> 10.91530024 | AF12: =VLOOKUP(AD12,$W$20:$Z$39,4,FALSE) -> 0.007569444444 | AG12: =IF(AE12>1440,TRUNC(AE12/1440)&" Day(s)","") ->  | AJ12: Flowrate Step Size | AL12: =AL11/125 -> 3.798460621 | AN12: DP (psi) | AP12: =1/1849600*(459.67+$AL$7)*$AL$6*($AL3^2/($AP$2^2*($AL$4+14.696))) -> 0.2635030455
E13: Calc Max Pressure at Regulator @ desired load | I13: =(C6-(1/1849600*(459.67+$C$8)*$C$7*(C14^2/($N$2^2*(C6+14.696)))))-0.5 -> 9.249507417 | AN13: DP (IWC) Actual | AP13: =AP14/0.036127292 -> 10.27698044
A14: Desired Load: | C14: ='EFV Calculator'!E19 -> 390 | E14: Estimated Equiv. Service Line Length (FT): | I14: =IF(I13<=0,0, (( (( (I13+14.69)^2-(($C$15)+14.69)^2 )-(0*0.0361) )/ ($C$8+459.67) ) / ( (C14/1000) / ( ( $N$7^(8/3) / ($C$7^(4/9) * (0.0105/1488.2)^(1/9) ) ) * ( 0.6643 * (60+459.67) / 14.69) ) ) ^ (9/5))) -> 18319.56159 | AN14: DP (psi) Actual | AP14: =1/1849600*(459.67+$AL$7)*$AL$6*($AL11^2/($AP$2^2*($AL$4+14.696))) -> 0.3712794731
A15: Desired Pressure at Regulator (psig): | C15: ='EFV Calculator'!E21 -> 2.5
AJ16: Pressure Drop Chart
A17: EFV Size Data Table | K17: P | L17: Trip Flow Calculations | P17: Equiv. Ft of Pipe | R17: Graph Index | T17: Reset Time Calculations | AB17: Data Being Graphed | AJ17: Flowrate (SCFH) | AK17: DP (psi) | AL17: DP (IWC) | AP17: =(1/1849600*(459.67+$AL$7)*$AL$6*(($AL$11*1.5)^2/($AP$2^2*($AL$4+14.696)))) -> 0.8353788145
A18: # | B18: EFV Size | C18: Cv | D18: DP (IWC) | E18: Max Limit % | F18: Bypass Rate | G18: Shift Coefficients | L18: x | M18: Shift Curve | N18: Min Trip Flow | O18: Max Trip Flow | P18: P (adj for EFV DP) | Q18: Equiv. Length (ft) (IGT) | T18: Intercept | U18: Slope | V18: Bypass CFH@10 | W18: % Max Bypass | X18: Bypass CFH @ P | Y18: Time to Reset | Z18: Reset (H:MM:SS) | AB18: P | AC18: Min Trip | AD18: Max Trip | AE18: Eq Ft Service
G19: a | H19: b | I19: c | AJ19: 0 | AK19: =1/1849600*(459.67+$AL$7)*$AL$6*($AJ19^2/($AP$2^2*($AL$4+14.696))) -> 0 | AL19: =AK19/0.036127292 -> 0
A20: 1 | B20: EFV II Series 375 | C20: 1.638058748 | D20: 9.912344349 | E20: 0.4667 | F20: =9/20 -> 0.45 | K20: 0 | L20: =($N$3*0.0361)/(14.69+K20) -> 0.02530093729 | M20: =$N$9*K20^2+$N$10*K20+$N$11 -> 0 | N20: =($I$2*$N$2*(14.69+K20)*(L20/($C$7*$I$3))^0.5)+M20 -> 366.3902976 | O20: =N20*(1+$N$4) -> 549.5854463 | P20: 0 | Q20: 0 | R20: 1 | T20: =V20-U20*10 -> 13.1 | U20: =$Q$2+$Q$3*V20+$Q$4*V20^2+$Q$5*V20^3+$Q$6*V20^4 -> 0.69 | V20: 20 | W20: =V20/20 -> 1 | X20: =T20+($C$10*U20) -> 20 | Y20: =($I$9*(((406.9+(($C$10)/0.036127292))/406.9)-1)/($I$7*(X20/60))*((459.67+60)/(459.67+$C$8)))*(1/SQRT($C$7))*1.33 -> 2.183060047 | Z20: =TIME(0,Y20,((Y20-TRUNC(Y20))*60)) -> 0.00150462963 | AB20: =VLOOKUP(0.005,$P$20:$R$145,3) -> 1 | AC20: =VLOOKUP($AB20,$K$20:$Q$145,4) -> 378.6557346 | AD20: =VLOOKUP($AB20,$K$20:$Q$145,5) -> 567.9836019 | AE20: =VLOOKUP($AB20,$K$20:$Q$145,7) -> 162.5831014 | AJ20: =AJ19+$AL$12 -> 3.798460621 | AK20: 2.376188628e-05 | AL20: =AK20/0.036127292 -> 0.0006577267479
A21: 2 | B21: EFV II Series 400 | C21: 1.638058748 | D21: 11.27804513 | E21: 0.375 | F21: 0.45 | K21: 1 | L21: =($N$3*0.0361)/(14.69+K21) -> 0.02368838552 | M21: =$N$9*K21^2+$N$10*K21+$N$11 -> 0 | N21: 378.6557346 | O21: 567.9836019 | P21: =K21-(1/1849600*(459.67+$C$8)*$C$7*(O21^2/($N$2^2*(K21+14.696)))) -> 0.164060441 | Q21: =IF(P21<=0,0, (( (( (P21+14.69)^2-(($I$5)+14.69)^2 )-(0*0.0361) )/ ($C$8+459.67) ) / ( (O21/1000) / ( ( $N$7^(8/3) / ($C$7^(4/9) * (0.0105/1488.2)^(1/9) ) ) * ( 0.6643 * (60+459.67) / 14.69) ) ) ^ (9/5))) -> 162.5831014 | R21: 2 | T21: 12.488244 | U21: 0.6511756 | V21: 19 | W21: 0.95 | X21: 19 | Y21: 2.297957945 | Z21: =TIME(0,Y21,((Y21-TRUNC(Y21))*60)) -> 0.001585648148 | AB21: =AB20+1 -> 2 | AC21: 390.536145 | AD21: 585.8042175 | AE21: 1128.096308 | AJ21: 7.596921242 | AK21: 9.504754511e-05 | AL21: 0.002630906992
A22: 3 | B22: EFV II Series 450 | C22: 1.638058748 | D22: 14.27377586 | E22: 0.222 | F22: 0.45 | K22: 2 | L22: =($N$3*0.0361)/(14.69+K22) -> 0.02226906943 | M22: 0 | N22: 390.536145 | O22: 585.8042175 | P22: 1.164041294 | Q22: 1128.096308 | R22: 3 | T22: 11.833984 | U22: 0.6166016 | V22: 18 | W22: 0.9 | X22: 18 | Y22: 2.425622275 | Z22: 0.001678240741 | AB22: =AB21+1 -> 3 | AC22: 402.065661 | AD22: 603.0984914 | AE22: 2055.351859 | AJ22: 11.39538186 | AK22: 0.0002138569765 | AL22: 0.005919540731
A23: 4 | B23: EFV II Series 775 | C23: 1.638058748 | D23: 42.33672408 | E23: 0.5 | F23: 0.45 | K23: 3 | L23: 0.0210102187 | M23: 0 | N23: 402.065661 | O23: 603.0984914 | P23: 2.164024312 | Q23: 2055.351859 | R23: 4 | T23: 11.144804 | U23: 0.5855196 | V23: 17 | W23: 0.85 | X23: 17 | Y23: 2.568305938 | Z23: 0.001782407407 | AB23: 4 | AC23: 413.2736514 | AD23: 619.910477 | AE23: 2950.682001 | AJ23: 15.19384248 | AK23: 0.0003801901805 | AL23: 0.01052362797
A24: 5 | B24: EFV I Series 350 | C24: 1.543711778 | D24: 9.722466272 | E24: 0.5 | F24: 0.45 | K24: 4 | L24: 0.01988607645 | M24: 0 | N24: 413.2736514 | O24: 619.910477 | P24: 3.164009146 | Q24: 2950.682001 | R24: 5 | T24: 10.428384 | U24: 0.5571616 | V24: 16 | W24: 0.8 | X24: 16 | Y24: 2.728825059 | Z24: 0.001886574074 | AB24: 5 | AC24: 424.1856034 | AD24: 636.278405 | AE24: 3819.142788 | AJ24: 18.9923031 | AK24: 0.000594047157 | AL24: 0.0164431687
A25: 6 | B25: EFV I Series 350 (1 IPS) | C25: 1.5048879 | D25: 12.37901105 | E25: 0.5 | F25: 0.45 | K25: 5 | L25: 0.01887611828 | M25: 0 | N25: 424.1856034 | O25: 636.278405 | P25: 4.16399552 | Q25: 3819.142788 | R25: 6 | T25: 9.6925 | U25: 0.53075 | V25: 15 | W25: 0.75 | X25: 15 | Y25: 2.91074673 | Z25: 0.002013888889 | AB25: 6 | AC25: 434.8238049 | AD25: 652.2357073 | AE25: 4664.818914 | AJ25: 22.79076372 | AK25: 0.000855427906 | AL25: 0.02367816293
A26: 7 | B26: EFV I Series 450 (1 IPS) | C26: 1.903074304 | D26: 10.57514495 | E26: 0.25 | F26: 0.45 | K26: 6 | L26: 0.01796378777 | M26: 0 | N26: 434.8238049 | O26: 652.2357073 | P26: 5.163983211 | Q26: 4664.818914 | R26: 7 | T26: 8.945024 | U26: 0.5054976 | V26: 14 | W26: 0.7 | X26: 14 | Y26: 3.11865721 | Z26: 0.002164351852 | AB26: 7 | AC26: 445.2078801 | AD26: 667.8118201 | AE26: 5491.045178 | AJ26: 26.58922435 | AK26: 0.001164332428 | AL26: 0.03222861065
A27: 8 | B27: EFV I Series 475 | C27: 2.035890442 | D27: 10.29558917 | E27: 0.5 | F27: 0.45 | K27: 7 | L27: 0.01713558178 | M27: 0 | N27: 445.2078801 | O27: 667.8118201 | P27: 6.163972036 | Q27: 5491.045178 | R27: 8 | T27: 8.193924 | U27: 0.4806076 | V27: 13 | W27: 0.65 | X27: 13 | Y27: 3.358553919 | Z27: 0.002326388889 | AB27: 8 | AC27: 455.3552148 | AD27: 683.0328222 | AE27: 6300.570016 | AJ27: 30.38768497 | AK27: 0.001520760722 | AL27: 0.04209451187
A28: 9 | B28: EFV I Series 475 (1 IPS) | C28: 1.903074304 | D28: 14.3939473 | E28: 0.5 | F28: 0.45 | K28: 8 | L28: 0.01638037765 | M28: 0 | N28: 455.3552148 | O28: 683.0328222 | P28: 7.163961847 | Q28: 6300.570016 | R28: 9 | T28: 7.447264 | U28: 0.4552736 | V28: 12 | W28: 0.6 | X28: 12 | Y28: 3.638433412 | Z28: 0.002523148148 | AB28: 9 | AC28: 465.2812986 | AD28: 697.921948 | AE28: 7095.678059 | AJ28: 34.18614559 | AK28: 0.001924712789 | AL28: 0.05327586658
A29: 10 | B29: EFV I Series 775 | C29: 2.325224574 | D29: 21.01098384 | E29: 0.5 | F29: 0.45 | K29: 9 | L29: 0.01568893072 | M29: 0 | N29: 465.2812986 | O29: 697.921948 | P29: 8.163952517 | Q29: 7095.678059 | R29: 10 | T29: 6.713204 | U29: 0.4286796 | V29: 11 | W29: 0.55 | X29: 11 | Y29: 3.969200086 | Z29: 0.00275462963 | AB29: 10 | AC29: 475.0000022 | AD29: 712.5000032 | AE29: 7878.283218 | AJ29: 37.98460621 | AK29: 0.002376188628 | AL29: 0.06577267479
A30: 11 | B30: EFV I Series 775 (1 IPS) | C30: 2.413316177 | D30: 23.73977363 | E30: 0.5 | F30: 0.45 | K30: 10 | L30: 0.01505349408 | M30: =$N$9*K30^2+$N$10*K30+$N$11 -> 0 | N30: 475.0000022 | O30: 712.5000032 | P30: 9.163943943 | Q30: =IF(P30<=0,0, (( (( (P30+14.69)^2-(($I$5)+14.69)^2 )-(0*0.0361) )/ ($C$8+459.67) ) / ( (O30/1000) / ( ( $N$7^(8/3) / ($C$7^(4/9) * (0.0105/1488.2)^(1/9) ) ) * ( 0.6643 * (60+459.67) / 14.69) ) ) ^ (9/5))) -> 7878.283218 | R30: 11 | T30: 6 | U30: 0.4 | V30: 10 | W30: 0.5 | X30: 10 | Y30: 4.366120095 | Z30: 0.003020833333 | AB30: 11 | AC30: 484.5238046 | AD30: 726.7857069 | AE30: 8650.000244 | AJ30: 41.78306683 | AK30: 0.00287518824 | AL30: 0.0795849365
A31: 12 | B31: EFV I Series 1100 | C31: 2.69667566 | D31: 31.47028905 | E31: 0.32 | F31: 0.45 | K31: 11 | L31: 0.01446752701 | M31: 0 | N31: 484.5238046 | O31: 726.7857069 | P31: 10.16393604 | Q31: 8650.000244 | R31: 12 | T31: 5.316004 | U31: 0.3683996 | V31: 9 | W31: 0.45 | X31: 9 | Y31: 4.85124455 | Z31: 0.003368055556 | AB31: 12 | AC31: 493.8639817 | AD31: 740.7959726 | AE31: 9412.200361 | AJ31: 45.58152745 | AK31: 0.003421711624 | AL31: 0.0947126517
A32: 13 | B32: EFV I Series 1200 | C32: 2.69667566 | D32: 37.45224482 | E32: 0.5 | F32: 0.45 | K32: 12 | L32: 0.01392546905 | M32: 0 | N32: 493.8639817 | O32: 740.7959726 | P32: 11.16392872 | Q32: 9412.200361 | R32: 13 | T32: 4.669664 | U32: 0.3330336 | V32: 8 | W32: 0.4 | X32: 8 | Y32: 5.457650118 | Z32: 0.003784722222 | AB32: 13 | AC32: 503.0307621 | AD32: 754.5461432 | AE32: 10166.05495 | AJ32: 49.37998807 | AK32: 0.004015758781 | AL32: 0.1111558204
A33: 14 | B33: EFV I Series 1200 (1 IPS) | C33: 2.72083252 | D33: 44.51609236 | E33: 0.5 | F33: 0.45 | K33: 13 | L33: 0.01342256298 | M33: 0 | N33: 503.0307621 | O33: 754.5461432 | P33: 12.16392194 | Q33: 10166.05495 | R33: 14 | T33: 4.069524 | U33: 0.2930476 | V33: 7 | W33: 0.35 | X33: 7 | Y33: 6.237314421 | Z33: 0.004328703704 | AB33: 14 | AC33: 512.0334587 | AD33: 768.050188 | AE33: 10912.5702 | AJ33: 53.17844869 | AK33: 0.004657329711 | AL33: 0.1289144426
A34: 15 | B34: EFV I Series 1800 | C34: 2.70875409 | D34: 83.08519801 | E34: 0.5 | F34: 0.45 | H34: ='Shift Calculations'!J4 -> 4.877 | I34: ='Shift Calculations'!J5 -> -44.103 | K34: 14 | L34: 0.01295471484 | M34: 0 | N34: =($I$2*$N$2*(14.69+K34)*(L34/($C$7*$I$3))^0.5)+M34 -> 512.0334587 | O34: 768.050188 | P34: 13.16391562 | Q34: 10912.5702 | R34: 15 | T34: 3.524224 | U34: 0.2475776 | V34: 6 | W34: 0.3 | X34: 6 | Y34: 7.276866824 | Z34: 0.005046296296 | AB34: 15 | AC34: 520.8805794 | AD34: 781.3208691 | AE34: 11652.61476 | AJ34: 56.97690931 | AK34: 0.005346424413 | AL34: 0.1479885183
A35: 16 | B35: EFV I Series 2600 | C35: 3.49 | D35: 104.9708307 | E35: 0.25 | F35: 0.45 | K35: 15 | L35: 0.01251838225 | M35: 0 | N35: 520.8805794 | O35: 781.3208691 | P35: 14.16390973 | Q35: 11652.61476 | R35: 16 | T35: 3.0425 | U35: 0.19575 | V35: 5 | W35: 0.25 | X35: 5 | Y35: 8.732240189 | Z35: 0.006053240741 | AB35: 16 | AC35: 529.5799214 | AD35: 794.3698822 | AE35: 12386.94213 | AJ35: 60.77536993 | AK35: 0.006083042887 | AL35: 0.1683780475
A36: 17 | B36: UMAC Series 300 | C36: 1.673 | D36: 13.68377517 | E36: 0.35 | F36: 0.45 | K36: 16 | L36: 0.01211048449 | M36: 0 | N36: 529.5799214 | O36: 794.3698822 | P36: 15.16390423 | Q36: 12386.94213 | R36: 17 | T36: 2.633184 | U36: 0.1366816 | V36: 4 | W36: 0.2 | X36: 4 | Y36: 10.91530024 | Z36: 0.007569444444 | AB36: 17 | AC36: 538.1386516 | AD36: 807.2079775 | AE36: 13116.2087 | AJ36: 64.57383055 | AK36: 0.006867185135 | AL36: 0.1900830302
A37: 18 | B37: UMAC Series 350 | C37: 1.048 | D37: 27.55308356 | E37: 0.4 | F37: 0.45 | K37: 17 | L37: 0.01172832972 | M37: 0 | N37: 538.1386516 | O37: 807.2079775 | P37: 16.16389907 | Q37: 13116.2087 | R37: 18 | T37: 2.305204 | U37: 0.0694796 | V37: 3 | W37: 0.15 | X37: 3 | Y37: 14.55373365 | Z37: 0.01010416667 | AB37: 18 | AC37: 546.5633756 | AD37: 819.8450634 | AE37: 13840.98868 | AJ37: 68.37229117 | AK37: 0.007698851154 | AL37: 0.2131034663
A38: 19 | B38: UMAC Series 400 | C38: 0.657 | D38: 70.10710528 | E38: 0.4 | F38: 0.45 | K38: 18 | L38: 0.01136955549 | M38: 0 | N38: 546.5633756 | O38: 819.8450634 | P38: 17.16389423 | Q38: 13840.98868 | R38: 19 | T38: 1.7 | U38: 0.03 | V38: 2 | W38: 0.1 | X38: 2 | Y38: 21.83060047 | Z38: 0.01515046296 | AB38: 19 | AC38: 554.8601975 | AD38: 832.2902962 | AE38: 14561.7862 | AJ38: 72.1707518 | AK38: 0.008578040947 | AL38: 0.237439356
A39: 20 | B39: UMAC Series 550 | C39: 1.075 | D39: 49.50866804 | E39: 0.4 | F39: 0.45 | K39: 19 | L39: 0.01103207981 | M39: 0 | N39: 554.8601975 | O39: 832.2902962 | P39: 18.16388968 | Q39: 14561.7862 | R39: 20 | T39: 0.85 | U39: 0.015 | V39: 1 | W39: 0.05 | X39: 1 | Y39: 43.66120095 | Z39: 0.0303125 | AB39: 20 | AC39: 563.0347715 | AD39: 844.5521573 | AE39: 15279.04549 | AJ39: 75.96921242 | AK39: 0.009504754511 | AL39: 0.2630906992
A40: 21 | B40: UMAC Series 700 | C40: 2.835 | D40: 11.53088778 | E40: 0.4 | F40: 0.45 | K40: 20 | L40: 0.01071406079 | M40: 0 | N40: 563.0347715 | O40: 844.5521573 | P40: 19.16388538 | Q40: 15279.04549 | R40: 21 | AB40: 21 | AC40: 571.0923473 | AD40: 856.638521 | AE40: 15993.15926 | AJ40: 79.76767304 | AK40: 0.01047899185 | AL40: 0.2900574958
A41: 22 | B41: UMAC Series 800 | C41: 1.007 | D41: 119.3696237 | E41: 0.4 | F41: 0.45 | K41: 21 | L41: 0.01041386295 | M41: 0 | N41: 571.0923473 | O41: 856.638521 | P41: 20.16388133 | Q41: 15993.15926 | R41: 22 | AB41: 22 | AC41: 579.0378091 | AD41: 868.5567136 | AE41: 16704.47573 | AJ41: 83.56613366 | AK41: 0.01150075296 | AL41: 0.318339746
A42: 23 | B42: UMAC Series 1100 | C42: 4.405 | D42: 11.79414158 | E42: 0.4 | F42: 0.45 | K42: 22 | L42: 0.01013002913 | M42: 0 | N42: 579.0378091 | O42: 868.5567136 | P42: 21.1638775 | Q42: 16704.47573 | R42: 23 | AB42: 23 | AC42: 586.8757105 | AD42: 880.3135657 | AE42: 17413.30462 | AJ42: 87.36459428 | AK42: 0.01257003784 | AL42: 0.3479374497
A43: 24 | B43: UMAC Series 1800 | C43: 4.133 | D43: 44.28961446 | E43: 0.4 | F43: 0.45 | K43: 23 | L43: 0.009861256802 | M43: 0 | N43: 586.8757105 | O43: 880.3135657 | P43: 22.16387388 | Q43: 17413.30462 | R43: 24 | AB43: 24 | AC43: 594.6103049 | AD43: 891.9154574 | AE43: 18119.92208 | AJ43: 91.1630549 | AK43: 0.0136868465 | AL43: 0.3788506068
A44: 25 | B44: UMAC Series 2600 | C44: 3.853 | D44: 86.12346012 | E44: 0.32 | F44: 0.45 | K44: 24 | L44: 0.009606378104 | M44: 0 | N44: 594.6103049 | O44: 891.9154574 | P44: 23.16387044 | Q44: 18119.92208 | R44: 25 | AB44: 25 | AC44: 602.2455728 | AD44: 903.3683591 | AE44: 18824.57503 | AJ44: 94.96151552 | AK44: 0.01485117892 | AL44: 0.4110792175
A45: 26 | B45: UMAC Series 5500(1.25IP) | C45: 8.512 | D45: 78.96505479 | E45: 0.4 | F45: 0.45 | K45: 25 | L45: 0.009364342879 | M45: 0 | N45: 602.2455728 | O45: 903.3683591 | P45: 24.16386717 | Q45: 18824.57503 | R45: 26 | AB45: 26 | AC45: 609.7852451 | AD45: 914.6778676 | AE45: 19527.48471 | AJ45: 98.75997614 | AK45: 0.01606303512 | AL45: 0.4446232816
A46: 27 | B46: UMAC Series 5500(2IP) | C46: 24.594 | D46: 9.458882563 | E46: 0.4 | F46: 0.45 | K46: 26 | L46: 0.009134204199 | M46: 0 | N46: 609.7852451 | O46: 914.6778676 | P46: 25.16386406 | Q46: 19527.48471 | R46: 27 | AB46: 27 | AC46: 617.232825 | AD46: 925.8492375 | AE46: 20228.84986 | AJ46: 102.5584368 | AK46: 0.0173224151 | AL46: 0.4794827992
A47: 28 | B47: UMAC Series 10000 | C47: 25.86 | D47: 28.28236654 | E47: 0.4 | F47: 0.45 | K47: 27 | L47: 0.008915105993 | M47: 0 | N47: 617.232825 | O47: 925.8492375 | P47: 26.16386111 | Q47: 20228.84986 | R47: 28 | AB47: 28 | AC47: 624.591607 | AD47: 936.8874104 | AE47: 20928.84933 | AJ47: 106.3568974 | AK47: 0.01862931884 | AL47: 0.5156577704
A48: 29 | B48: CEFV Series 1800 | C48: 9.099378182 | D48: 7.401067611 | E48: 0.5 | F48: =13/20 -> 0.65 | K48: 28 | L48: 0.008706272402 | M48: 0 | N48: 624.591607 | O48: 936.8874104 | P48: 27.16385829 | Q48: 20928.84933 | R48: 29 | AB48: 29 | AC48: 631.8646933 | AD48: 947.79704 | AE48: 21627.64446 | AJ48: 110.155358 | AK48: 0.01998374636 | AL48: 0.553148195
A49: 30 | B49: CEFV Series 2600 | C49: 9.099378182 | D49: 15.44173366 | E49: 0.5 | F49: =13/20 -> 0.65 | K49: 29 | L49: 0.008506998601 | M49: 0 | N49: 631.8646933 | O49: 947.79704 | P49: 28.1638556 | Q49: 21627.64446 | R49: 30 | AB49: 30 | AC49: 639.05501 | AD49: 958.5825151 | AE49: 22325.38099 | AJ49: 113.9538186 | AK49: 0.02138569765 | AL49: 0.5919540731
A50: 31 | B50: CEFV Series 3900 | C50: 17.57388444 | D50: 9.314648549 | E50: 0.5 | F50: =13/20 -> 0.65 | G50: ='Shift Calculations'!AO4 -> 0.0283 | H50: ='Shift Calculations'!AO5 -> 18.369 | I50: ='Shift Calculations'!AO6 -> -186.52 | K50: 30 | L50: 0.008316642848 | M50: 0 | N50: 639.05501 | O50: 958.5825151 | P50: 29.16385303 | Q50: 22325.38099 | R50: 31 | AB50: 31 | AC50: 646.1653202 | AD50: 969.2479803 | AE50: 23022.19085 | AJ50: 117.7522792 | AK50: 0.02283517271 | AL50: 0.6320754048
A51: 32 | B51: CEFV Series 5500 | C51: 17.57388444 | D51: 18.5251886 | E51: 0.5 | F51: =13/20 -> 0.65 | G51: ='Shift Calculations'!AT4 -> 0.0283 | H51: ='Shift Calculations'!AT5 -> 18.369 | I51: ='Shift Calculations'!AT6 -> -186.52 | K51: 31 | L51: 0.008134619585 | M51: 0 | N51: 646.1653202 | O51: 969.2479803 | P51: 30.16385057 | Q51: 23022.19085 | R51: 32 | AB51: 32 | AC51: 653.1982366 | AD51: 979.7973548 | AE51: 23718.19367 | AJ51: 121.5507399 | AK51: =1/1849600*(459.67+$AL$7)*$AL$6*($AJ51^2/($AP$2^2*($AL$4+14.696))) -> 0.02433217155 | AL51: 0.6735121899
K52: 32 | L52: 0.007960393422 | M52: 0 | N52: 653.1982366 | O52: =N52*(1+$N$4) -> 979.7973548 | P52: 31.16384822 | Q52: 23718.19367 | R52: 33 | AB52: 33 | AC52: =VLOOKUP($AB52,$K$20:$Q$145,4) -> 660.1562326 | AD52: =VLOOKUP($AB52,$K$20:$Q$145,5) -> 990.2343489 | AE52: =VLOOKUP($AB52,$K$20:$Q$145,7) -> 24413.49806 | AJ52: =AJ51+$AL$12 -> 125.3492005 | AK52: 0.02587669416 | AL52: 0.7162644285
A53: Pipe Size Data Table | K53: 33 | L53: 0.00779347387 | M53: 0 | N53: 660.1562326 | O53: 990.2343489 | P53: =K53-(1/1849600*(459.67+$C$8)*$C$7*(O53^2/($N$2^2*(K53+14.696)))) -> 32.16384597 | Q53: =IF(P53<=0,0, (( (( (P53+14.69)^2-(($I$5)+14.69)^2 )-(0*0.0361) )/ ($C$8+459.67) ) / ( (O53/1000) / ( ( $N$7^(8/3) / ($C$7^(4/9) * (0.0105/1488.2)^(1/9) ) ) * ( 0.6643 * (60+459.67) / 14.69) ) ) ^ (9/5))) -> 24413.49806 | R53: 34 | AB53: 34 | AC53: 667.0416528 | AD53: 1000.562479 | AE53: 25108.2028 | AJ53: 129.1476611 | AK53: 0.02746874054 | AL53: 0.7603321206
K54: 34 | L54: 0.007633410739 | M54: 0 | N54: 667.0416528 | O54: 1000.562479 | P54: 33.16384381 | Q54: 25108.2028 | R54: 35 | AB54: 35 | AC54: 673.856722 | AD54: 1010.785083 | AE54: 25802.39785 | AJ54: 132.9461217 | AK54: 0.02910831069 | AL54: 0.8057152662
A55: # | B55: Pipe Size | C55: OD | D55: Nom. Wall | E55: ID | F55: Display List | K55: 35 | L55: 0.007479790076 | M55: 0 | N55: 673.856722 | O55: 1010.785083 | P55: 34.16384174 | Q55: 25802.39785 | R55: 36 | AB55: 36 | AC55: 680.6035535 | AD55: 1020.90533 | AE55: 26496.16524 | AJ55: 136.7445823 | AK55: 0.03079540462 | AL55: 0.8524138653
K56: 36 | L56: 0.007332230595 | M56: 0 | N56: 680.6035535 | O56: 1020.90533 | P56: 35.16383974 | Q56: 26496.16524 | R56: 37 | AB56: 37 | AC56: 687.2841568 | AD56: 1030.926235 | AE56: 27189.57985 | AJ56: 140.543043 | AK56: 0.03253002232 | AL56: 0.9004279179
A57: 1 | B57: ½ CTS .090 | C57: 0.625 | D57: =0.09 + 0.0045 -> 0.0945 | E57: =C57-(2*D57) -> 0.436 | F57: =B57 -> ½ CTS .090 | K57: 37 | L57: 0.007190380516 | M57: 0 | N57: 687.2841568 | O57: 1030.926235 | P57: 36.16383783 | Q57: 27189.57985 | R57: 38 | AB57: 38 | AC57: 693.9004449 | AD57: 1040.850667 | AE57: 27882.71014 | AJ57: 144.3415036 | AK57: 0.03431216379 | AL57: 0.949757424
A58: 2 | B58: ½ IPS DR 9.3 | C58: 0.84 | D58: =0.09 + 0.0055 -> 0.0955 | E58: =C58-(2*D58) -> 0.649 | F58: =IF($C$2<=4,$F$57,B58) -> ½ IPS DR 9.3 | K58: 38 | L58: 0.007053914763 | M58: 0 | N58: 693.9004449 | O58: 1040.850667 | P58: 37.16383599 | Q58: 27882.71014 | R58: 39 | AB58: 39 | AC58: 700.4542402 | AD58: 1050.68136 | AE58: 28575.61873 | AJ58: 148.1399642 | AK58: 0.03614182903 | AL58: 1.000402384
A59: 3 | B59: ¾ CTS .090 | C59: 0.875 | D59: =0.09 + 0.0045 -> 0.0945 | E59: =C59-(2*D59) -> 0.686 | F59: ¾ CTS .090 | K59: 39 | L59: 0.00692253248 | M59: 0 | N59: 700.4542402 | O59: 1050.68136 | P59: 38.16383421 | Q59: 28575.61873 | R59: 40 | AB59: 40 | AC59: 706.9472808 | AD59: 1060.420921 | AE59: 29268.36298 | AJ59: 151.9384248 | AK59: 0.03801901805 | AL59: 1.052362797
A60: 4 | B60: ¾ IPS DR 11 | C60: 1.05 | D60: =0.095 + 0.0055 -> 0.1005 | E60: 0.849 | F60: ¾ IPS DR 11 | K60: 40 | L60: 0.006795954816 | M60: 0 | N60: 706.9472808 | O60: 1060.420921 | P60: 39.16383251 | Q60: 29268.36298 | R60: 41 | AB60: 41 | AC60: 713.3812255 | AD60: 1070.071838 | AE60: 29960.99548 | AJ60: 155.7368855 | AK60: 0.03994373083 | AL60: 1.105638663
A61: 5 | B61: 1 CTS .090 | C61: 1.125 | D61: =0.09 + 0.0055 -> 0.0955 | E61: =C61-(2*D61) -> 0.934 | F61: 1 CTS .090 | K61: 41 | L61: 0.006673922946 | M61: 0 | N61: 713.3812255 | O61: 1070.071838 | P61: 40.16383086 | Q61: 29960.99548 | R61: 42 | AB61: 42 | AC61: 719.7576593 | AD61: 1079.636489 | AE61: 30653.56448 | AJ61: 159.5353461 | AK61: 0.0419159674 | AL61: 1.160229983
A62: 6 | B62: 1 CTS .099 | C62: 1.125 | D62: =0.099 + 0.006 -> 0.105 | E62: 0.915 | F62: 1 CTS .099 | K62: 42 | L62: 0.006556196311 | M62: 0 | N62: 719.7576593 | O62: 1079.636489 | P62: 41.16382927 | Q62: 30653.56448 | R62: 43 | AB62: 43 | AC62: 726.0780973 | AD62: 1089.117146 | AE62: 31346.11428 | AJ62: 163.3338067 | AK62: 0.04393572773 | AL62: 1.216136757
A63: 7 | B63: 1 IPS DR 11 | C63: =1.315 -> 1.315 | D63: =0.12+0.007 -> 0.127 | E63: 1.061 | F63: 1 IPS DR 11 | K63: 43 | L63: 0.006442551029 | M63: 0 | N63: 726.0780973 | O63: 1089.117146 | P63: 42.16382774 | Q63: 31346.11428 | R63: 44 | AB63: 44 | AC63: 732.3439892 | AD63: 1098.515984 | AE63: 32038.68561 | AJ63: 167.1322673 | AK63: 0.04600301184 | AL63: 1.273358984
A64: 8 | B64: 1¼ IPS DR 10 | C64: 1.66 | D64: =0.166 + 0.01 -> 0.176 | E64: =C64-(2*D64) -> 1.308 | F64: 1¼ IPS DR 10 | K64: 44 | L64: 0.006332778478 | M64: 0 | N64: 732.3439892 | O64: 1098.515984 | P64: 43.16382625 | Q64: 32038.68561 | R64: 45 | AB64: 45 | AC64: 738.5567234 | AD64: 1107.835085 | AE64: 32731.31589 | AJ64: 170.9307279 | AK64: 0.04811781971 | AL64: 1.331896665
A65: 9 | B65: 1¼ IPS DR 11 | C65: 1.66 | D65: =0.151 + 0.009 -> 0.16 | E65: 1.34 | F65: 1¼ IPS DR 11 | K65: 45 | L65: 0.006226684015 | M65: 0 | N65: 738.5567234 | O65: 1107.835085 | P65: 44.16382482 | Q65: 32731.31589 | R65: 46 | AB65: 46 | AC65: 744.7176303 | AD65: 1117.076445 | AE65: 33424.03958 | AJ65: 174.7291886 | AK65: 0.05028015137 | AL65: 1.391749799
A66: 10 | B66: 2 IPS DR 11 | C66: 2.375 | D66: =0.216 + 0.013 -> 0.229 | E66: 1.917 | F66: 2 IPS DR 11 | K66: 46 | L66: 0.006124085827 | M66: 0 | N66: 744.7176303 | O66: 1117.076445 | P66: 45.16382344 | Q66: 33424.03958 | R66: 47 | AB66: 47 | AC66: 750.8279857 | AD66: 1126.241979 | AE66: 34116.88839 | AJ66: 178.5276492 | AK66: 0.05249000679 | AL66: 1.452918386
A67: 11 | B67: NPS ¾ Sch 40 | C67: 1.05 | D67: =0.113-(0.113*0.0625) -> 0.1059375 | E67: 0.838125 | F67: NPS ¾ Sch 40 | K67: 47 | L67: 0.00602481389 | M67: 0 | N67: 750.8279857 | O67: 1126.241979 | P67: 46.1638221 | Q67: 34116.88839 | R67: 48 | AB67: 48 | AC67: 756.8890138 | AD67: 1135.333521 | AE67: 34809.89153 | AJ67: 182.3261098 | AK67: 0.05474738599 | AL67: 1.515402427
A68: 12 | B68: NPS 1 Sch 40 | C68: 1.315 | D68: =0.133-(0.133*0.0625) -> 0.1246875 | E68: =C68-(2*D68) -> 1.065625 | F68: NPS 1 Sch 40 | K68: 48 | L68: 0.005928709026 | M68: 0 | N68: 756.8890138 | O68: 1135.333521 | P68: 47.1638208 | Q68: 34809.89153 | R68: 49 | AB68: 49 | AC68: 762.9018905 | AD68: 1144.352836 | AE68: 35503.0759 | AJ68: 186.1245704 | AK68: 0.05705228896 | AL68: 1.579201922
K69: 49 | L69: 0.005835622058 | M69: 0 | N69: 762.9018905 | O69: 1144.352836 | P69: 48.16381954 | Q69: 35503.0759 | R69: 50 | AB69: 50 | AC69: 768.8677452 | AD69: 1153.301618 | AE69: 36196.46633 | AJ69: 189.923031 | AK69: 0.0594047157 | AL69: 1.64431687
B70: Change Pipe Size Order???? | K70: 50 | L70: 0.005745413029 | M70: 0 | N70: 768.8677452 | O70: 1153.301618 | P70: 49.16381833 | Q70: 36196.46633 | R70: 51 | AB70: 51 | AC70: 774.7876644 | AD70: 1162.181497 | AE70: 36890.08567 | AJ70: 193.7214917 | AK70: 0.06180466621 | AL70: 1.710747271
K71: 51 | L71: 0.005657950508 | M71: 0 | N71: 774.7876644 | O71: 1162.181497 | P71: 50.16381715 | Q71: 36890.08567 | R71: 52 | AB71: 52 | AC71: 780.6626929 | AD71: 1170.994039 | AE71: 37583.95503 | AJ71: 197.5199523 | AK71: 0.0642521405 | AL71: 1.778493126
K72: 52 | L72: 0.005573110944 | M72: 0 | N72: 780.6626929 | O72: 1170.994039 | P72: 51.163816 | Q72: 37583.95503 | R72: 53 | AB72: 53 | AC72: 786.4938367 | AD72: 1179.740755 | AE72: 38278.09386 | AJ72: 201.3184129 | AK72: 0.06674713856 | AL72: 1.847554435
K73: 53 | L73: 0.005490778089 | M73: 0 | N73: 786.4938367 | O73: 1179.740755 | P73: 52.16381489 | Q73: 38278.09386 | R73: 54 | AB73: 54 | AC73: 792.2820649 | AD73: 1188.423097 | AE73: 38972.52011 | AJ73: 205.1168735 | AK73: 0.06928966039 | AL73: 1.917931197
K74: 54 | L74: 0.005410842464 | M74: 0 | N74: 792.2820649 | O74: 1188.423097 | P74: 53.16381381 | Q74: 38972.52011 | R74: 55 | AB74: 55 | AC74: 798.0283113 | AD74: 1197.042467 | AE74: 39667.25034 | AJ74: 208.9153341 | AK74: 0.07187970599 | AL74: 1.989623412
K75: 55 | L75: 0.005333200873 | M75: 0 | N75: 798.0283113 | O75: 1197.042467 | P75: 54.16381276 | Q75: 39667.25034 | R75: 56 | AB75: 56 | AC75: 803.7334762 | AD75: 1205.600214 | AE75: 40362.29982 | AJ75: 212.7137948 | AK75: 0.07451727537 | AL75: 2.062631082
K76: 56 | L76: 0.005257755961 | M76: 0 | N76: 803.7334762 | O76: 1205.600214 | P76: 55.16381174 | Q76: 40362.29982 | R76: 57 | AB76: 57 | AC76: 809.3984285 | AD76: 1214.097643 | AE76: 41057.68263 | AJ76: 216.5122554 | AK76: 0.07720236852 | AL76: 2.136954204
K77: 57 | L77: 0.005184415802 | M77: 0 | N77: 809.3984285 | O77: 1214.097643 | P77: 56.16381075 | Q77: 41057.68263 | R77: 58 | AB77: 58 | AC77: 815.0240065 | AD77: 1222.53601 | AE77: 41753.41176 | AJ77: 220.310716 | AK77: 0.07993498544 | AL77: 2.21259278
K78: 58 | L78: 0.005113093532 | M78: 0 | N78: 815.0240065 | O78: 1222.53601 | P78: 57.16380979 | Q78: 41753.41176 | R78: 59 | AB78: 59 | AC78: 820.6110201 | AD78: 1230.91653 | AE78: 42449.4992 | AJ78: 224.1091766 | AK78: 0.08271512614 | AL78: 2.28954681
K79: 59 | L79: 0.005043707 | M79: 0 | N79: 820.6110201 | O79: 1230.91653 | P79: 58.16380885 | Q79: 42449.4992 | R79: 60 | AB79: 60 | AC79: 826.1602517 | AD79: 1239.240378 | AE79: 43145.95596 | AJ79: 227.9076372 | AK79: 0.0855427906 | AL79: 2.367816293
K80: 60 | L80: 0.004976178456 | M80: 0 | N80: 826.1602517 | O80: 1239.240378 | P80: 59.16380794 | Q80: 43145.95596 | R80: 61 | AB80: 61 | AC80: 831.6724576 | AD80: 1247.508686 | AE80: 43842.79223 | AJ80: 231.7060979 | AK80: 0.08841797884 | AL80: 2.447401229
K81: 61 | L81: 0.004910434256 | M81: 0 | N81: 831.6724576 | O81: 1247.508686 | P81: 60.16380706 | Q81: 43842.79223 | R81: 62 | AB81: 62 | AC81: 837.1483691 | AD81: 1255.722554 | AE81: 44540.01734 | AJ81: 235.5045585 | AK81: 0.09134069086 | AL81: 2.528301619
K82: 62 | L82: 0.004846404601 | M82: 0 | N82: 837.1483691 | O82: 1255.722554 | P82: 61.16380619 | Q82: 44540.01734 | R82: 63 | AB82: 63 | AC82: 842.5886939 | AD82: 1263.883041 | AE82: 45237.63992 | AJ82: 239.3030191 | AK82: 0.09431092664 | AL82: 2.610517463
K83: 63 | L83: 0.004784023283 | M83: 0 | N83: 842.5886939 | O83: 1263.883041 | P83: 62.16380535 | Q83: 45237.63992 | R83: 64 | AB83: 64 | AC83: 847.9941169 | AD83: 1271.991175 | AE83: 45935.66787 | AJ83: 243.1014797 | AK83: =1/1849600*(459.67+$AL$7)*$AL$6*($AJ83^2/($AP$2^2*($AL$4+14.696))) -> 0.0973286862 | AL83: 2.69404876
K84: 64 | L84: 0.00472322746 | M84: 0 | N84: 847.9941169 | O84: =N84*(1+$N$4) -> 1271.991175 | P84: 63.16380453 | Q84: 45935.66787 | R84: 65 | AB84: 65 | AC84: =VLOOKUP($AB84,$K$20:$Q$145,4) -> 853.3653013 | AD84: =VLOOKUP($AB84,$K$20:$Q$145,5) -> 1280.047952 | AE84: =VLOOKUP($AB84,$K$20:$Q$145,7) -> 46634.10845 | AJ84: =AJ83+$AL$12 -> 246.8999404 | AK84: 0.1003939695 | AL84: =AK84/0.036127292 -> 2.77889551
K85: 65 | L85: 0.004663957446 | M85: =$N$9*K85^2+$N$10*K85+$N$11 -> 0 | N85: 853.3653013 | O85: 1280.047952 | P85: =K85-(1/1849600*(459.67+$C$8)*$C$7*(O85^2/($N$2^2*(K85+14.696)))) -> 64.16380373 | Q85: =IF(P85<=0,0, (( (( (P85+14.69)^2-(($I$5)+14.69)^2 )-(0*0.0361) )/ ($C$8+459.67) ) / ( (O85/1000) / ( ( $N$7^(8/3) / ($C$7^(4/9) * (0.0105/1488.2)^(1/9) ) ) * ( 0.6643 * (60+459.67) / 14.69) ) ) ^ (9/5))) -> 46634.10845 | R85: 66 | AB85: 66 | AC85: 858.7028897 | AD85: 1288.054334 | AE85: 47332.96832 | AJ85: 250.698401 | AK85: 0.1035067766 | AL85: 2.865057714
K86: 66 | L86: =($N$3*0.0361)/(14.69+K86) -> 0.004606156511 | M86: 0 | N86: 858.7028897 | O86: 1288.054334 | P86: 65.16380295 | Q86: 47332.96832 | R86: 67 | AB86: =AB85+1 -> 67 | AC86: 864.0075045 | AD86: 1296.011257 | AE86: 48032.2536 | AJ86: 254.4968616 | AK86: 0.1066671075 | AL86: 2.952535371
K87: 67 | L87: 0.004549770705 | M87: 0 | N87: 864.0075045 | O87: 1296.011257 | P87: 66.16380219 | Q87: 48032.2536 | R87: 68 | AB87: 68 | AC87: 869.2797496 | AD87: 1303.919624 | AE87: 48731.96986 | AJ87: 258.2953222 | AK87: 0.1098749622 | AL87: 3.041328482
K88: 68 | L88: 0.004494748686 | M88: 0 | N88: 869.2797496 | O88: 1303.919624 | P88: 67.16380144 | Q88: 48731.96986 | R88: 69 | AB88: 69 | AC88: 874.5202103 | AD88: 1311.780316 | AE88: 49432.12221 | AJ88: 262.0937828 | AK88: 0.1131303406 | AL88: 3.131437047
K89: 69 | L89: 0.004441041568 | M89: 0 | N89: 874.5202103 | O89: 1311.780316 | P89: 68.16380072 | Q89: 49432.12221 | R89: 70 | AB89: 70 | AC89: 879.7294547 | AD89: 1319.594182 | AE89: 50132.71528 | AJ89: 265.8922435 | AK89: 0.1164332428 | AL89: 3.222861065
K90: 70 | L90: 0.004388602773 | M90: 0 | N90: 879.7294547 | O90: 1319.594182 | P90: 69.16380001 | Q90: 50132.71528 | R90: 71 | AB90: 71 | AC90: 884.908034 | AD90: 1327.362051 | AE90: 50833.75332 | AJ90: 269.6907041 | AK90: 0.1197836687 | AL90: 3.315600536
K91: 71 | L91: 0.004337387897 | M91: 0 | N91: 884.908034 | O91: 1327.362051 | P91: 70.16379932 | Q91: 50833.75332 | R91: 72 | AB91: 72 | AC91: 890.0564835 | AD91: 1335.084725 | AE91: 51535.24015 | AJ91: 273.4891647 | AK91: 0.1231816185 | AL91: 3.409655461
K92: 72 | L92: 0.004287354584 | M92: 0 | N92: 890.0564835 | O92: 1335.084725 | P92: 71.16379865 | Q92: 51535.24015 | R92: 73 | AB92: 73 | AC92: 895.1753231 | AD92: 1342.762985 | AE92: 52237.17924 | AJ92: 277.2876253 | AK92: 0.126627092 | AL92: 3.50502584
K93: 73 | L93: 0.004238462411 | M93: 0 | N93: 895.1753231 | O93: 1342.762985 | P93: 72.16379799 | Q93: 52237.17924 | R93: 74 | AB93: 74 | AC93: 900.2650578 | AD93: 1350.397587 | AE93: 52939.57372 | AJ93: 281.0860859 | AK93: 0.1301200893 | AL93: 3.601711672
K94: 74 | L94: 0.00419067278 | M94: 0 | N94: 900.2650578 | O94: 1350.397587 | P94: 73.16379734 | Q94: 52939.57372 | R94: 75 | AB94: 75 | AC94: 905.3261785 | AD94: 1357.989268 | AE94: 53642.4264 | AJ94: 284.8845466 | AK94: 0.1336606103 | AL94: 3.699712957
K95: 75 | L95: 0.004143948811 | M95: 0 | N95: 905.3261785 | O95: 1357.989268 | P95: 74.16379671 | Q95: 53642.4264 | R95: 76 | AB95: 76 | AC95: 910.3591624 | AD95: 1365.538744 | AE95: 54345.73979 | AJ95: 288.6830072 | AK95: 0.1372486551 | AL95: 3.799029696
K96: 76 | L96: 0.004098255253 | M96: 0 | N96: 910.3591624 | O96: 1365.538744 | P96: 75.16379609 | Q96: 54345.73979 | R96: 77 | AB96: 77 | AC96: 915.3644738 | AD96: 1373.046711 | AE96: 55049.51613 | AJ96: 292.4814678 | AK96: 0.1408842237 | AL96: 3.899661888
K97: 77 | L97: 0.004053558391 | M97: 0 | N97: 915.3644738 | O97: 1373.046711 | P97: 76.16379549 | Q97: 55049.51613 | R97: 78 | AB97: 78 | AC97: 920.3425639 | AD97: 1380.513846 | AE97: 55753.75739 | AJ97: 296.2799284 | AK97: 0.1445673161 | AL97: 4.001609534
K98: 78 | L98: 0.004009825967 | M98: 0 | N98: =($I$2*$N$2*(14.69+K98)*(L98/($C$7*$I$3))^0.5)+M98 -> 920.3425639 | O98: 1380.513846 | P98: 77.1637949 | Q98: 55753.75739 | R98: 79 | AB98: 79 | AC98: 925.2938723 | AD98: 1387.940809 | AE98: 56458.46529 | AJ98: 300.078389 | AK98: 0.1482979323 | AL98: 4.104872634
K99: 79 | L99: 0.003967027099 | M99: 0 | N99: 925.2938723 | O99: 1387.940809 | P99: 78.16379432 | Q99: 56458.46529 | R99: 80 | AB99: 80 | AC99: 930.2188266 | AD99: 1395.32824 | AE99: 57163.64136 | AJ99: 303.8768497 | AK99: 0.1520760722 | AL99: 4.209451187
K100: 80 | L100: 0.003925132209 | M100: 0 | N100: 930.2188266 | O100: 1395.32824 | P100: 79.16379376 | Q100: 57163.64136 | R100: 81 | AB100: 81 | AC100: 935.1178431 | AD100: 1402.676765 | AE100: 57869.28687 | AJ100: 307.6753103 | AK100: 0.1559017359 | AL100: 4.315345193
K101: 81 | L101: 0.003884112957 | M101: 0 | N101: 935.1178431 | O101: 1402.676765 | P101: 80.1637932 | Q101: 57869.28687 | R101: 82 | AB101: 82 | AC101: 939.9913275 | AD101: 1409.986991 | AE101: 58575.40292 | AJ101: 311.4737709 | AK101: 0.1597749233 | AL101: 4.422554653
K102: 82 | L102: 0.003843942175 | M102: 0 | N102: 939.9913275 | O102: 1409.986991 | P102: 81.16379266 | Q102: 58575.40292 | R102: 83 | AB102: 83 | AC102: 944.8396747 | AD102: 1417.259512 | AE102: 59281.99042 | AJ102: 315.2722315 | AK102: 0.1636956346 | AL102: 4.531079566
K103: 83 | L103: 0.003804593806 | M103: 0 | N103: 944.8396747 | O103: 1417.259512 | P103: 82.16379213 | Q103: 59281.99042 | R103: 84 | AB103: 84 | AC103: 949.6632699 | AD103: 1424.494905 | AE103: 59989.05011 | AJ103: 319.0706921 | AK103: 0.1676638696 | AL103: 4.640919933
K104: 84 | L104: 0.00376604285 | M104: 0 | N104: 949.6632699 | O104: 1424.494905 | P104: 83.16379161 | Q104: 59989.05011 | R104: 85 | AB104: 85 | AC104: 954.4624882 | AD104: 1431.693732 | AE104: 60696.58256 | AJ104: 322.8691528 | AK104: 0.1716796284 | AL104: 4.752075754
K105: 85 | L105: 0.003728265311 | M105: 0 | N105: 954.4624882 | O105: 1431.693732 | P105: 84.1637911 | Q105: 60696.58256 | R105: 86 | AB105: 86 | AC105: 959.2376955 | AD105: 1438.856543 | AE105: 61404.58819 | AJ105: 326.6676134 | AK105: 0.1757429109 | AL105: 4.864547028
K106: 86 | L106: 0.003691238145 | M106: 0 | N106: 959.2376955 | O106: 1438.856543 | P106: 85.1637906 | Q106: 61404.58819 | R106: 87 | AB106: 87 | AC106: 963.9892488 | AD106: 1445.983873 | AE106: 62113.06728 | AJ106: 330.466074 | AK106: 0.1798537172 | AL106: 4.978333755
K107: 87 | L107: 0.003654939216 | M107: 0 | N107: 963.9892488 | O107: 1445.983873 | P107: 86.16379011 | Q107: 62113.06728 | R107: 88 | AB107: 88 | AC107: 968.7174959 | AD107: 1453.076244 | AE107: 62822.01997 | AJ107: 334.2645346 | AK107: 0.1840120473 | AL107: 5.093435936
K108: 88 | L108: 0.003619347248 | M108: 0 | N108: 968.7174959 | O108: 1453.076244 | P108: 87.16378963 | Q108: 62822.01997 | R108: 89 | AB108: 89 | AC108: 973.4227766 | AD108: 1460.134165 | AE108: 63531.44629 | AJ108: 338.0629953 | AK108: 0.1882179012 | AL108: 5.20985357
K109: 89 | L109: 0.003584441787 | M109: 0 | N109: 973.4227766 | O109: 1460.134165 | P109: 88.16378916 | Q109: 63531.44629 | R109: 90 | AB109: 90 | AC109: 978.1054224 | AD109: 1467.158134 | AE109: 64241.34615 | AJ109: 341.8614559 | AK109: 0.1924712789 | AL109: 5.327586658
K110: 90 | L110: 0.00355020316 | M110: 0 | N110: 978.1054224 | O110: 1467.158134 | P110: =K110-(1/1849600*(459.67+$C$8)*$C$7*(O110^2/($N$2^2*(K110+14.696)))) -> 89.1637887 | Q110: 64241.34615 | R110: 91 | AB110: 91 | AC110: 982.7657567 | AD110: 1474.148635 | AE110: 64951.71933 | AJ110: 345.6599165 | AK110: 0.1967721803 | AL110: 5.4466352
K111: 91 | L111: 0.003516612441 | M111: 0 | N111: 982.7657567 | O111: 1474.148635 | P111: 90.16378824 | Q111: 64951.71933 | R111: 92 | AB111: 92 | AC111: 987.4040954 | AD111: 1481.106143 | AE111: 65662.56553 | AJ111: 349.4583771 | AK111: 0.2011206055 | AL111: 5.566999194
K112: 92 | L112: 0.003483651409 | M112: 0 | N112: 987.4040954 | O112: 1481.106143 | P112: 91.1637878 | Q112: 65662.56553 | R112: 93 | AB112: 93 | AC112: 992.0207472 | AD112: 1488.031121 | AE112: 66373.88436 | AJ112: 353.2568377 | AK112: 0.2055165544 | AL112: 5.688678643
K113: 93 | L113: 0.003451302524 | M113: 0 | N113: 992.0207472 | O113: 1488.031121 | P113: 92.16378736 | Q113: 66373.88436 | R113: 94 | AB113: 94 | AC113: 996.6160133 | AD113: 1494.92402 | AE113: 67085.67532 | AJ113: 357.0552984 | AK113: 0.2099600272 | AL113: 5.811673545
K114: 94 | L114: 0.00341954889 | M114: 0 | N114: 996.6160133 | O114: 1494.92402 | P114: 93.16378693 | Q114: 67085.67532 | R114: 95 | AB114: 95 | AC114: 1001.190188 | AD114: 1501.785283 | AE114: 67797.93784 | AJ114: 360.853759 | AK114: 0.2144510237 | AL114: 5.9359839
K115: 95 | L115: 0.003388374226 | M115: 0 | N115: 1001.190188 | O115: 1501.785283 | P115: 94.16378651 | Q115: 67797.93784 | R115: 96 | AB115: 96 | AC115: 1005.74356 | AD115: 1508.61534 | AE115: 68510.67127 | AJ115: 364.6522196 | AK115: =1/1849600*(459.67+$AL$7)*$AL$6*($AJ115^2/($AP$2^2*($AL$4+14.696))) -> 0.2189895439 | AL115: 6.061609709
K116: 96 | L116: 0.003357762841 | M116: 0 | N116: 1005.74356 | O116: =N116*(1+$N$4) -> 1508.61534 | P116: 95.1637861 | Q116: 68510.67127 | R116: 97 | AB116: 97 | AC116: =VLOOKUP($AB116,$K$20:$Q$145,4) -> 1010.27641 | AD116: =VLOOKUP($AB116,$K$20:$Q$145,5) -> 1515.414614 | AE116: =VLOOKUP($AB116,$K$20:$Q$145,7) -> 69223.87489 | AJ116: =AJ115+$AL$12 -> 368.4506802 | AK116: 0.223575588 | AL116: 6.188550971
K117: 97 | L117: 0.003327699605 | M117: 0 | N117: 1010.27641 | O117: =N117*(1+$N$4) -> 1515.414614 | P117: =K117-(1/1849600*(459.67+$C$8)*$C$7*(O117^2/($N$2^2*(K117+14.696)))) -> 96.16378569 | Q117: =IF(P117<=0,0, (( (( (P117+14.69)^2-(($I$5)+14.69)^2 )-(0*0.0361) )/ ($C$8+459.67) ) / ( (O117/1000) / ( ( $N$7^(8/3) / ($C$7^(4/9) * (0.0105/1488.2)^(1/9) ) ) * ( 0.6643 * (60+459.67) / 14.69) ) ) ^ (9/5))) -> 69223.87489 | R117: 98 | AB117: 98 | AC117: 1014.789012 | AD117: 1522.183518 | AE117: 69937.5479 | AJ117: 372.2491408 | AK117: 0.2282091558 | AL117: 6.316807687
K118: 98 | L118: 0.003298169925 | M118: 0 | N118: 1014.789012 | O118: =N118*(1+$N$4) -> 1522.183518 | P118: 97.16378529 | Q118: 69937.5479 | R118: 99 | AB118: 99 | AC118: 1019.281636 | AD118: 1528.922454 | AE118: 70651.68945 | AJ118: 376.0476015 | AK118: 0.2328902474 | AL118: 6.446379856
K119: 99 | L119: 0.003269159723 | M119: 0 | N119: 1019.281636 | O119: =N119*(1+$N$4) -> 1528.922454 | P119: 98.1637849 | Q119: 70651.68945 | R119: 100 | AB119: 100 | AC119: 1023.754545 | AD119: 1535.631818 | AE119: 71366.29862 | AJ119: 379.8460621 | AK119: 0.2376188628 | AL119: 6.577267479
K120: 100 | L120: 0.003240655409 | M120: 0 | N120: 1023.754545 | O120: =N120*(1+$N$4) -> 1535.631818 | P120: 99.16378452 | Q120: 71366.29862 | R120: 101 | AB120: 101 | AC120: 1028.207997 | AD120: 1542.311995 | AE120: 72081.37445 | AJ120: 383.6445227 | AK120: 0.2423950019 | AL120: 6.709470556
K121: 101 | L121: 0.003212643866 | M121: 0 | N121: 1028.207997 | O121: =N121*(1+$N$4) -> 1542.311995 | P121: 100.1637841 | Q121: 72081.37445 | R121: 102 | AB121: =AB120+1 -> 102 | AC121: 1032.642242 | AD121: 1548.963363 | AE121: 72796.91591 | AJ121: 387.4429833 | AK121: 0.2472186648 | AL121: 6.842989085
K122: 102 | L122: 0.003185112425 | M122: 0 | N122: 1032.642242 | O122: 1548.963363 | P122: 101.1637838 | Q122: 72796.91591 | R122: 103 | AB122: 103 | AC122: 1037.057527 | AD122: 1555.586291 | AE122: 73512.92194 | AJ122: 391.2414439 | AK122: 0.2520898515 | AL122: 6.977823069
K123: 103 | L123: 0.003158048847 | M123: 0 | N123: 1037.057527 | O123: 1555.586291 | P123: 102.1637834 | Q123: 73512.92194 | R123: 104 | AB123: 104 | AC123: 1041.454094 | AD123: 1562.181141 | AE123: 74229.39141 | AJ123: 395.0399046 | AK123: 0.257008562 | AL123: 7.113972506
K124: 104 | L124: 0.003131441308 | M124: 0 | N124: 1041.454094 | O124: 1562.181141 | P124: 103.163783 | Q124: 74229.39141 | R124: 105 | AB124: 105 | AC124: 1045.832178 | AD124: 1568.748267 | AE124: 74946.32319 | AJ124: 398.8383652 | AK124: 0.2619747962 | AL124: 7.251437396
K125: 105 | L125: 0.003105278376 | M125: 0 | N125: 1045.832178 | O125: 1568.748267 | P125: 104.1637827 | Q125: 74946.32319 | R125: 106 | AB125: 106 | AC125: 1050.192011 | AD125: 1575.288017 | AE125: 75663.71607 | AJ125: 402.6368258 | AK125: 0.2669885542 | AL125: 7.39021774
K126: 106 | L126: 0.003079549 | M126: 0 | N126: 1050.192011 | O126: 1575.288017 | P126: 105.1637823 | Q126: 75663.71607 | R126: 107 | AB126: 107 | AC126: 1054.533819 | AD126: 1581.800729 | AE126: 76381.56882 | AJ126: 406.4352864 | AK126: 0.272049836 | AL126: 7.530313537
K127: 107 | L127: 0.003054242492 | M127: 0 | N127: 1054.533819 | O127: 1581.800729 | P127: 106.163782 | Q127: 76381.56882 | R127: 108 | AB127: 108 | AC127: 1058.857824 | AD127: 1588.286735 | AE127: 77099.88018 | AJ127: 410.233747 | AK127: 0.2771586416 | AL127: 7.671724788
K128: 108 | L128: 0.003029348511 | M128: 0 | N128: 1058.857824 | O128: 1588.286735 | P128: 107.1637817 | Q128: 77099.88018 | R128: 109 | AB128: 109 | AC128: 1063.164242 | AD128: 1594.746363 | AE128: 77818.64886 | AJ128: 414.0322077 | AK128: 0.2823149709 | AL128: 7.814451492
K129: 109 | L129: 0.003004857053 | M129: 0 | N129: 1063.164242 | O129: 1594.746363 | P129: 108.1637813 | Q129: 77818.64886 | R129: 110 | AB129: 110 | AC129: 1067.453288 | AD129: 1601.179931 | AE129: 78537.87353 | AJ129: 417.8306683 | AK129: 0.287518824 | AL129: 7.95849365
K130: 110 | L130: 0.002980758432 | M130: 0 | N130: 1067.453288 | O130: 1601.179931 | P130: 109.163781 | Q130: 78537.87353 | R130: 111 | AB130: 111 | AC130: 1071.725168 | AD130: 1607.587752 | AE130: 79257.55284 | AJ130: 421.6291289 | AK130: 0.2927702008 | AL130: 8.103851261
K131: 111 | L131: 0.002957043272 | M131: 0 | N131: 1071.725168 | O131: 1607.587752 | P131: 110.1637807 | Q131: 79257.55284 | R131: 112 | AB131: 112 | AC131: 1075.980089 | AD131: 1613.970133 | AE131: 79977.68543 | AJ131: 425.4275895 | AK131: 0.2980691015 | AL131: 8.250524326
K132: 112 | L132: 0.002933702493 | M132: 0 | N132: 1075.980089 | O132: 1613.970133 | P132: 111.1637804 | Q132: 79977.68543 | R132: 113 | AB132: 113 | AC132: 1080.21825 | AD132: 1620.327374 | AE132: 80698.26989 | AJ132: 429.2260502 | AK132: 0.3034155259 | AL132: 8.398512844
K133: 113 | L133: 0.002910727299 | M133: 0 | N133: 1080.21825 | O133: 1620.327374 | P133: 112.1637801 | Q133: 80698.26989 | R133: 114 | AB133: 114 | AC133: 1084.439847 | AD133: 1626.659771 | AE133: 81419.30481 | AJ133: 433.0245108 | AK133: 0.3088094741 | AL133: 8.547816816
K134: 114 | L134: 0.002888109168 | M134: 0 | N134: 1084.439847 | O134: 1626.659771 | P134: 113.1637798 | Q134: 81419.30481 | R134: 115 | AB134: 115 | AC134: 1088.645074 | AD134: 1632.967611 | AE134: 82140.78876 | AJ134: 436.8229714 | AK134: 0.314250946 | AL134: 8.698436241
K135: 115 | L135: 0.00286583984 | M135: 0 | N135: 1088.645074 | O135: 1632.967611 | P135: 114.1637795 | Q135: 82140.78876 | R135: 116 | AB135: 116 | AC135: 1092.834119 | AD135: 1639.251179 | AE135: 82862.72028 | AJ135: 440.621432 | AK135: 0.3197399418 | AL135: 8.85037112
K136: 116 | L136: 0.002843911308 | M136: 0 | N136: 1092.834119 | O136: 1639.251179 | P136: 115.1637792 | Q136: 82862.72028 | R136: 117 | AB136: 117 | AC136: 1097.007168 | AD136: 1645.510753 | AE136: 83585.09791 | AJ136: 444.4198926 | AK136: 0.3252764613 | AL136: 9.003621452
K137: 117 | L137: 0.002822315809 | M137: 0 | N137: 1097.007168 | O137: 1645.510753 | P137: 116.1637789 | Q137: 83585.09791 | R137: 118 | AB137: 118 | AC137: 1101.164403 | AD137: 1651.746605 | AE137: 84307.92016 | AJ137: 448.2183533 | AK137: 0.3308605045 | AL137: 9.158187238
K138: 118 | L138: 0.002801045812 | M138: 0 | N138: 1101.164403 | O138: 1651.746605 | P138: 117.1637786 | Q138: 84307.92016 | R138: 119 | AB138: 119 | AC138: 1105.306002 | AD138: 1657.959003 | AE138: 85031.18553 | AJ138: 452.0168139 | AK138: 0.3364920716 | AL138: 9.314068477
K139: 119 | L139: 0.002780094015 | M139: 0 | N139: 1105.306002 | O139: 1657.959003 | P139: 118.1637783 | Q139: 85031.18553 | R139: 120 | AB139: 120 | AC139: 1109.43214 | AD139: 1664.14821 | AE139: 85754.89252 | AJ139: 455.8152745 | AK139: 0.3421711624 | AL139: 9.47126517
K140: 120 | L140: 0.002759453329 | M140: 0 | N140: 1109.43214 | O140: 1664.14821 | P140: 119.163778 | Q140: 85754.89252 | R140: 121 | AB140: 121 | AC140: 1113.542989 | AD140: 1670.314483 | AE140: 86479.03962 | AJ140: 459.6137351 | AK140: 0.347897777 | AL140: 9.629777316
K141: 121 | L141: 0.002739116876 | M141: 0 | N141: 1113.542989 | O141: 1670.314483 | P141: 120.1637777 | Q141: 86479.03962 | R141: 122 | AB141: 122 | AC141: 1117.638718 | AD141: 1676.458077 | AE141: 87203.62529 | AJ141: 463.4121957 | AK141: 0.3536719154 | AL141: 9.789604916
K142: 122 | L142: 0.002719077978 | M142: 0 | N142: 1117.638718 | O142: 1676.458077 | P142: 121.1637775 | Q142: 87203.62529 | R142: 123 | AB142: 123 | AC142: 1121.719492 | AD142: 1682.579238 | AE142: 87928.648 | AJ142: 467.2106564 | AK142: 0.3594935775 | AL142: 9.950747969
K143: 123 | L143: 0.002699330154 | M143: 0 | N143: 1121.719492 | O143: 1682.579238 | P143: 122.1637772 | Q143: 87928.648 | R143: 124 | AB143: 124 | AC143: 1125.785474 | AD143: 1688.678211 | AE143: 88654.10621 | AJ143: 471.009117 | AK143: 0.3653627634 | AL143: 10.11320648
K144: 124 | L144: 0.002679867105 | M144: 0 | N144: 1125.785474 | O144: 1688.678211 | P144: 123.1637769 | Q144: 88654.10621 | R144: 125 | AB144: 125 | AC144: 1129.836824 | AD144: 1694.755236 | AE144: 89379.99837 | AJ144: 474.8075776 | AK144: 0.3712794731 | AL144: 10.27698044
K145: 125 | L145: 0.002660682718 | M145: 0 | N145: =($I$2*$N$2*(14.69+K145)*(L145/($C$7*$I$3))^0.5)+M145 -> 1129.836824 | O145: 1694.755236 | P145: 124.1637767 | Q145: 89379.99837 | R145: 126 | AB145: 126 | AC145: 1129.836824 | AD145: 1694.755236 | AE145: 89379.99837

Sheet Shift Calculations (hidden)
A1: EFV I Series 1800 | W1: =A1 -> EFV I Series 1800 | X1: CEFV 3900 & 5500 Shift | BL1: =X1 -> CEFV 3900 & 5500 Shift
B2: Data -Old EFV Calculator | D2: Flow Data from CV Calculation | N2: Test Data (8-3-12) | Q2: The Curve Fit Data from the Old EFV Calculator was compared to the theoretical Curve generated by the Cv Value. The difference between these two values was plotted and the equation for the linear fit of these data points was used to generate a shift for the CV generated Curve. The shifted Cv Curve was then plotted vs test data to show that the shape holds up to empirical testing. The green data is an offset curve at 41% of the minimum trip flow to simulate what perfect test data should have plotted on the chart. It was very close to the actual data points. | AW2: A similar approach was used to calculate the needed shift for the 3900 and 5500 CEFV. The Cv Curve did not fit match the empirical data so a shift was created by taking an average of the 3900 from 1¼ and 2 IPS sizes and the 5500 from 1¼ and 2 IPS, then taking the difference at these points from the Cv Curve. The differences for the 3900 and 5500 were then averaged and plotted with a 2nd order polynomial was used to fit the difference data. This polynomial was used to create the shift coefficients that are listed in the boxes. They are a little low for the 5500 and a little high for the 3900 but over estimate the two models very well. The new shifted max and min trip are plotted on the chart along with data points so the shift can be seen. The shift moves the shifted test curve to follow the data fairly close.
B3: Curve Fit Coefficients | D3: Values Used for Calculation | H3: Shift Values | N3: Pressure | O3: Flowrate | Y3: Values Used for Calculation | AC3: Values Used for Calculation | AM3: Shift Values | AR3: Shift Values
B4: a = | C4: 1610 | D4: Numeric Constant | F4: 1360 | H4: Shift Coefficient A | J4: 4.877 | N4: 9.94 | O4: 2539.708 | Y4: Numeric Constant | AA4: 1360 | AC4: Numeric Constant | AE4: 1360 | AM4: Shift Coefficient A | AO4: 0.0283 | AR4: Shift Coefficient A | AT4: 0.0283
B5: b = | C5: 58.4392 | D5: Temp °R Upstream | F5: =60+459.67 -> 519.67 | H5: Shift Coefficient B | J5: -44.103 | N5: 31.804 | O5: 3495.938 | Y5: Temp °R Upstream | AA5: =60+459.67 -> 519.67 | AB5: Data Curve % of Min | AC5: Temp °R Upstream | AE5: =60+459.67 -> 519.67 | AF5: Data Curve % of Min | AM5: Shift Coefficient B | AO5: 18.369 | AR5: Shift Coefficient B | AT5: 18.369
B6: c = | C6: -0.4215 | D6: Specific Gravity | F6: 0.6 | H6: P Drop (iwc) | J6: 83.42308005 | N6: 50.756 | O6: 4450.932 | Y6: Specific Gravity | AA6: 0.6 | AC6: Specific Gravity | AE6: 0.6 | AM6: Shift Coefficient C | AO6: -186.52 | AR6: Shift Coefficient C | AT6: -186.52
B7: d = | C7: 0.00201 | D7: Flow Coefficient - Cv | F7: 2.70875409 | N7: 71.466 | O7: 5200.014 | Y7: Flow Coefficient - Cv | AA7: 17.57388444 | AB7: =(AI15-Z22)/Z22 -> 0.2525146441 | AC7: Flow Coefficient - Cv | AE7: 17.57388444 | AF7: =(AI23-AD22)/AD22 -> 0.3167222372 | AM7: P Drop (psi) | AO7: 9.352530075 | AR7: P Drop (psi) | AT7: 18.60052723
B8: Max % | C8: 0.5 | D8: P Drop (iwc) | F8: 83.8573626 | H8: Test Data Offset From Min | J8: =(O4-J22)/J22 -> 0.4109488827 | N8: 94.82 | O8: 6013 | Y8: P Drop (psi) | AA8: 9.352528318 | AC8: P Drop (psi) | AE8: 18.60052475 | AM8: Test Data Offset | AO8: =(AI15-AO22)/AO22 -> 0.2525145265 | AR8: Test Data Offset | AT8: =(AI23-AT22)/AT22 -> 0.3167221493
A10: P | B10: Curve Fit Data | D10: Cv Calculated Data | H10: Shifted Cv Calculated Data | L10: Test Data Shifted Curve | X10: P | Y10: 3900 Cv Calculated Data | AC10: 5500 Cv Calculated Data | AH10: Data from lab test 2012 012 | AM10: 3900 Shifted Cv Calculated Data | AQ10: Test Data Shifted Curve | AR10: 5500 Shifted Cv Calculated Data | AV10: Test Data Shifted Curve
B11: Min Trip Point | C11: Max Trip Point | D11: x | E11: Min Trip Flow | F11: Max Trip Flow | G11: Min Trip Flow Difference | H11: x | I11: Shift | J11: Min Trip Flow | K11: Max Trip Flow | Y11: x | Z11: Min Trip Flow | AA11: Max Trip Flow | AB11: Curve at Data | AC11: x | AD11: Min Trip Flow | AE11: Max Trip Flow | AF11: Curve at Data | AI11: CEFV Series 3900 Average of Qualification Data | AM11: X | AN11: Shift | AO11: Min Trip Flow | AP11: Max Trip Flow | AR11: X | AS11: Shift | AT11: Min Trip Flow | AU11: Max Trip Flow
A12: 0 | B12: =(1800/2154)*(C$4+C$5*$A12+C$6*$A12^2+C$7*$A12^3) -> 1345.4039 | C12: =(1+C$8)*B12 -> 2018.10585 | D12: =($F$8*0.0361)/(14.59+A12) -> 0.2074880596 | E12: =($F$4*$F$7*(14.59+A12)*(D12/($F$6*$F$5))^0.5) -> 1386.503233 | F12: =E12*(1+$C$8) -> 2079.75485 | G12: =B12-E12 -> -41.09933362 | H12: =($J$6*0.0361)/(14.59+A12) -> 0.2064135154 | I12: =($J$4*A12)+$J$5 -> -44.103 | J12: =($F$4*$F$7*(14.59+A12)*(H12/($F$6*$F$5))^0.5)+I12 -> 1338.805345 | K12: =J12*(1+$C$8) -> 2008.208017 | L12: =J12*(1+$J$8) -> 1888.985905 | X12: 0 | Y12: =($AA$8*0.0361)/(14.59+X12) -> 0.0231409371 | Z12: =($AA$4*$AA$7*(14.59+X12)*(Y12/($AA$6*$AA$5))^0.5) -> 3004.090344 | AA12: =Z12*(1+$C$8) -> 4506.135516 | AB12: =Z12*(1+$AB$7) -> 3762.667148 | AC12: =($AE$8*0.0361)/(14.59+X12) -> 0.04602323121 | AD12: =($AE$4*$AE$7*(14.59+X12)*(AC12/($AE$6*$AE$5))^0.5) -> 4236.537662 | AE12: =AD12*(1+$C$8) -> 6354.806494 | AF12: =AD12*(1+$AF$7) -> 5578.343349 | AI12: 10 | AJ12: 60 | AK12: 108 | AM12: =($AO$7*0.0361)/(14.59+X12) -> 0.02314094145 | AN12: =$AO$4*X12^2+$AO$5*X12+$AO$6 -> -186.52 | AO12: =($AA$4*$AA$7*(14.59+X12)*(AM12/($AA$6*$AA$5))^0.5)+AN12 -> 2817.570626 | AP12: =AO12*(1+$C$8) -> 4226.355939 | AQ12: =AO12*(1+$AO$8) -> 3529.048138 | AR12: =($AT$7*0.0361)/(14.59+X12) -> 0.04602323735 | AS12: =$AT$4*X12^2+$AT$5*X12+$AT$6 -> -186.52 | AT12: =($AE$4*$AE$7*(14.59+X12)*(AR12/($AE$6*$AE$5))^0.5)+AS12 -> 4050.017945 | AU12: =AT12*(1+$C$8) -> 6075.026918 | AV12: =AT12*(1+$AO$8) -> 5072.706309
A13: 1 | B13: 1393.888337 | C13: 2090.832506 | D13: 0.1941790115 | E13: 1433.231347 | F13: 2149.847021 | G13: =B13-E13 -> -39.34301012 | H13: 0.1931733925 | I13: -39.226 | J13: 1390.289303 | K13: =J13*(1+$C$8) -> 2085.433955 | L13: 1961.627139 | X13: 1 | Y13: =($AA$8*0.0361)/(14.59+X13) -> 0.02165659219 | Z13: 3105.334591 | AA13: 4658.001886 | AB13: 3889.477049 | AC13: =($AE$8*0.0361)/(14.59+X13) -> 0.04307113171 | AD13: 4379.31801 | AE13: 6568.977016 | AF13: =AD13*(1+$AF$7) -> 5766.345408 | AH13: 1¼ | AI13: 4842.87256 | AJ13: 9648.867419 | AK13: 13057.05024 | AM13: =($AO$7*0.0361)/(14.59+X13) -> 0.02165659626 | AN13: =$AO$4*X13^2+$AO$5*X13+$AO$6 -> -168.1227 | AO13: 2937.212182 | AP13: =AO13*(1+$C$8) -> 4405.818273 | AQ13: =AO13*(1+$AO$8) -> 3678.900925 | AR13: =($AT$7*0.0361)/(14.59+X13) -> 0.04307113745 | AS13: =$AT$4*X13^2+$AT$5*X13+$AT$6 -> -168.1227 | AT13: 4211.195603 | AU13: =AT13*(1+$C$8) -> 6316.793404 | AV13: =AT13*(1+$AO$8) -> 5274.583666
A14: 2 | B14: 1441.678396 | C14: 2162.517593 | D14: 0.1824744298 | E14: 1478.483335 | F14: 2217.725003 | G14: -36.80493981 | H14: 0.1815294267 | I14: -34.349 | J14: 1440.300963 | K14: 2160.451445 | L14: 2032.191035 | X14: 2 | Y14: 0.02035119182 | Z14: 3203.380565 | AA14: 4805.070848 | AB14: 4012.281068 | AC14: 0.04047492124 | AD14: 4517.587975 | AE14: 6776.381962 | AF14: 5948.408544 | AH14: 2 | AI14: 4926.74168 | AJ14: 8882.414949 | AK14: 13089.75192 | AM14: 0.02035119564 | AN14: -149.6688 | AO14: 3053.712066 | AP14: 4580.568099 | AQ14: 3824.818722 | AR14: 0.04047492664 | AS14: -149.6688 | AT14: 4367.919476 | AU14: 6551.879214 | AV14: 5470.882594
A15: 3 | B15: 1488.784153 | C15: 2233.17623 | D15: 0.1721006703 | E15: 1522.390834 | F15: 2283.586251 | G15: -33.60668075 | H15: 0.1712093911 | I15: -29.472 | J15: 1488.971619 | K15: 2233.457429 | L15: 2100.862843 | X15: 3 | Y15: 0.01919421673 | Z15: 3298.513479 | AA15: 4947.770218 | AB15: 4131.436436 | AC15: 0.03817390241 | AD15: 4651.749776 | AE15: 6977.624664 | AF15: 6125.062372 | AH15: Average | AI15: =AVERAGE(AI13:AI14) -> 4884.80712 | AJ15: =AVERAGE(AJ13:AJ14) -> 9265.641184 | AK15: =AVERAGE(AK13:AK14) -> 13073.40108 | AM15: 0.01919422034 | AN15: -131.1583 | AO15: 3167.355489 | AP15: 4751.033233 | AQ15: 3967.15876 | AR15: 0.0381739075 | AS15: -131.1583 | AT15: 4520.591786 | AU15: 6780.887679 | AV15: 5662.10688
A16: 4 | B16: 1535.215688 | C16: 2302.823532 | D16: 0.1628429688 | E16: 1565.067005 | F16: 2347.600507 | G16: -29.85131685 | H16: 0.1619996337 | I16: -24.595 | J16: 1536.414141 | K16: 2304.621211 | L16: 2167.801815 | X16: 4 | Y16: 0.01816171449 | Z16: 3390.978516 | AA16: 5086.467774 | AB16: 4247.250249 | AC16: 0.03612043805 | AD16: 4782.149187 | AE16: 7173.223781 | AF16: 6296.762176 | AH16: Cv Curve Data | AI16: =VLOOKUP(AI12,$X$12:$AF$137,5) -> 4884.80712 | AJ16: =VLOOKUP(AJ12,$X$12:$AF$137,5) -> 8507.627359 | AK16: =VLOOKUP(AK12,$X$12:$AF$137,5) -> 10906.75803 | AM16: 0.0181617179 | AN16: -112.5912 | AO16: 3278.387634 | AP16: 4917.581452 | AQ16: 4106.228136 | AR16: 0.03612044287 | AS16: -112.5912 | AT16: 4669.558306 | AU16: 7004.337459 | AV16: 5848.689611
A17: 5 | B17: 1580.983078 | C17: 2371.474617 | D17: 0.154530413 | E17: 1606.609974 | F17: 2409.914961 | G17: -25.62689588 | H17: 0.1537301271 | I17: -19.718 | J17: 1582.726398 | K17: 2374.089597 | L17: 2233.146043 | X17: 5 | Y17: 0.01723462339 | Z17: 3480.988282 | AA17: 5221.482424 | AB17: 4359.9888 | AC17: 0.03427661783 | AD17: 4909.086037 | AE17: 7363.629056 | AF17: 6463.902749 | AH17: Difference | AI17: =AI15-AI16 -> 0 | AJ17: =AJ15-AJ16 -> 758.0138257 | AK17: =AK15-AK16 -> 2166.643054 | AM17: 0.01723462663 | AN17: -93.9675 | AO17: 3387.021109 | AP17: 5080.531664 | AQ17: 4242.293141 | AR17: 0.0342766224 | AS17: -93.9675 | AT17: 4815.118865 | AU17: 7222.678297 | AV17: 6031.006324
A18: 6 | B18: 1626.096401 | C18: 2439.144602 | D18: 0.1470252933 | E18: 1647.105487 | F18: 2470.658231 | G18: -21.00908627 | H18: 0.1462638752 | I18: -14.841 | J18: 1627.993916 | K18: 2441.990874 | L18: 2297.016197 | X18: 6 | Y18: 0.01639758486 | Z18: 3568.728562 | AA18: 5353.092843 | AB18: 4469.884784 | AC18: 0.03261189623 | AD18: 5032.822329 | AE18: 7549.233493 | AF18: 6626.829076 | AM18: 0.01639758794 | AN18: -75.2872 | AO18: 3493.441697 | AP18: 5240.162545 | AQ18: 4375.586473 | AR18: 0.03261190058 | AS18: -75.2872 | AT18: 4957.535464 | AU18: 7436.303196 | AV18: 6209.385184
A19: 7 | B19: 1670.565735 | C19: 2505.848603 | D19: 0.1402154141 | E19: 1686.628994 | F19: 2529.943492 | G19: -16.06325909 | H19: 0.1394892631 | I19: -9.964 | J19: 1672.291948 | K19: 2508.437921 | L19: 2359.518455 | X19: 7 | Y19: 0.01563808579 | Z19: 3654.362827 | AA19: 5481.544241 | AB19: 4577.142956 | AC19: 0.03110138691 | AD19: 5153.5886 | AE19: 7730.382901 | AF19: 6785.844711 | AI19: CEFV Series 5500 Average of Qualification Data | AM19: 0.01563808873 | AN19: -56.5503 | AO19: 3597.81287 | AP19: 5396.719306 | AQ19: 4506.312884 | AR19: 0.03110139106 | AS19: -56.5503 | AT19: 5097.038644 | AU19: 7645.557966 | AV19: 6384.114944
A20: 8 | B20: 1714.401159 | C20: 2571.601738 | D20: 0.1340084458 | E20: 1725.247299 | F20: 2587.870949 | G20: -10.84614043 | H20: 0.1333144396 | I20: -5.087 | J20: 1715.687124 | K20: 2573.530686 | L20: 2420.74683 | X20: 8 | Y20: 0.01494582879 | Z20: 3738.035821 | AA20: 5607.053732 | AB20: 4681.944606 | AC20: 0.02972461015 | AD20: 5271.588976 | AE20: 7907.383464 | AF20: 6941.21843 | AI20: 10 | AJ20: 60 | AK20: 105 | AM20: 0.01494583159 | AN20: -37.7568 | AO20: 3700.279372 | AP20: 5550.419058 | AQ20: 4634.653665 | AR20: 0.02972461412 | AS20: -37.7568 | AT20: 5233.832528 | AU20: 7850.748791 | AV20: 6555.45127
A21: 9 | B21: 1757.612749 | C21: 2636.419124 | D21: 0.1283277147 | E21: 1763.019887 | F21: 2644.52983 | G21: -5.407137655 | H21: 0.127663128 | I21: -0.21 | J21: 1758.238776 | K21: 2637.358164 | L21: 2480.785036 | X21: 9 | Y21: 0.0143122625 | Z21: 3819.876428 | AA21: 5729.814642 | AB21: 4784.451165 | AC21: 0.02846455885 | AD21: 5387.005217 | AE21: 8080.507825 | AF21: 7093.18956 | AH21: 1¼ | AI21: 7261.97632 | AJ21: 14204.86816 | AK21: 18795.05377 | AM21: 0.01431226518 | AN21: -18.9067 | AO21: 3800.970087 | AP21: 5701.45513 | AQ21: 4760.770248 | AR21: 0.02846456265 | AS21: -18.9067 | AT21: 5368.098876 | AU21: 8052.148314 | AV21: 6723.621821
A22: 10 | B22: 1800.210585 | C22: 2700.315877 | D22: 0.1231090195 | E22: 1800 | F22: 2700 | G22: 0.2105848957 | H22: 0.1224714595 | I22: 4.667 | J22: =($F$4*$F$7*(14.59+A22)*(H22/($F$6*$F$5))^0.5)+I22 -> 1800.000008 | K22: 2700.000012 | L22: 2539.708 | X22: 10 | Y22: 0.01373022661 | Z22: 3900.000006 | AA22: 5850.00001 | AB22: 4884.80712 | AC22: 0.02730699241 | AD22: 5500.000007 | AE22: 8250.00001 | AF22: 7241.972313 | AH22: 2 | AI22: 7221.968306 | AJ22: 13575.67569 | AK22: 17178.14455 | AM22: 0.01373022919 | AN22: 0 | AO22: 3900.000373 | AP22: 5850.000559 | AQ22: 4884.80712 | AR22: 0.02730699605 | AS22: 0 | AT22: 5500.000374 | AU22: 8250.00056 | AV22: 6888.830363
A23: 11 | B23: 1842.204744 | C23: 2763.307116 | D23: 0.1182981942 | E23: 1836.235518 | F23: 2754.353277 | G23: 5.96922544 | H23: 0.1176855486 | I23: 9.544 | J23: =($F$4*$F$7*(14.59+A23)*(H23/($F$6*$F$5))^0.5)+I23 -> 1841.018576 | K23: 2761.527864 | L23: 2597.583102 | X23: 11 | Y23: 0.01319368004 | Z23: 3978.510296 | AA23: 5967.765444 | AB23: 4983.142407 | AC23: 0.02623989618 | AD23: 5610.719646 | AE23: 8416.079469 | AF23: 7387.759324 | AH23: Average | AI23: =AVERAGE(AI21:AI22) -> 7241.972313 | AJ23: =AVERAGE(AJ21:AJ22) -> 13890.27193 | AK23: =AVERAGE(AK21:AK22) -> 17986.59916 | AM23: 0.01319368252 | AN23: 18.9633 | AO23: 3997.47397 | AP23: 5996.210955 | AQ23: 5006.894216 | AR23: 0.02623989968 | AS23: 18.9633 | AT23: 5629.68332 | AU23: 8444.52498 | AV23: 7051.260138
A24: 12 | B24: 1883.605304 | C24: 2825.407955 | D24: 0.1138492211 | E24: 1871.769686 | F24: 2807.654529 | G24: 11.83561772 | H24: 0.113259616 | I24: 14.421 | J24: 1881.337611 | K24: 2822.006417 | L24: 2654.471201 | X24: 12 | Y24: 0.0126974905 | Z24: 4055.500993 | AA24: 6083.251489 | AB24: 5079.574382 | AC24: 0.02525306293 | AD24: 5719.296269 | AE24: 8578.944404 | AF24: 7530.724579 | AH24: Cv Curve Data | AI24: =VLOOKUP(AI20,$X$12:$AF$137,9) -> 7241.972313 | AJ24: =VLOOKUP(AJ20,$X$12:$AF$137,9) -> 12612.98558 | AK24: =VLOOKUP(AK20,$X$12:$AF$137,9) -> 15970.7396 | AM24: 0.01269749288 | AN24: 37.9832 | AO24: 4093.484574 | AP24: 6140.22686 | AQ24: 5127.148892 | AR24: 0.0252530663 | AS24: 37.9832 | AT24: 5757.279851 | AU24: 8635.919776 | AV24: 7211.076646
A25: 13 | B25: 1924.422343 | C25: 2886.633514 | D25: 0.1097227543 | E25: 1906.641717 | F25: 2859.962575 | G25: 17.78062602 | H25: 0.1091545194 | I25: 19.298 | J25: 1920.996227 | K25: 2881.49434 | L25: 2710.42748 | X25: 13 | Y25: 0.01223726975 | Z25: 4131.057059 | AA25: 6196.585589 | AB25: 5174.209462 | AC25: 0.02433776525 | AD25: 5825.849697 | AE25: 8738.774545 | AF25: 7671.025846 | AH25: Difference | AI25: =AI23-AI24 -> 0 | AJ25: =AJ23-AJ24 -> 1277.286342 | AK25: =AK23-AK24 -> 2015.859559 | AM25: 0.01223727204 | AN25: 57.0597 | AO25: 4188.117147 | AP25: 6282.175721 | AQ25: 5245.677565 | AR25: 0.0243377685 | AS25: 57.0597 | AT25: 5882.909785 | AU25: 8824.364678 | AV25: 7368.429964
A26: 14 | B26: 1964.665939 | C26: 2946.998908 | D26: 0.1058849524 | E26: 1940.887301 | F26: 2911.330951 | G26: 23.77863805 | H26: 0.1053365929 | I26: 24.175 | J26: 1960.03002 | K26: 2940.04503 | L26: 2765.502166 | X26: 14 | Y26: 0.01180924352 | Z26: 4205.255825 | AA26: 6307.883737 | AB26: 5267.144503 | AC26: 0.02348649679 | AD26: 5930.488981 | AE26: 8895.733472 | AF26: 7808.806719 | AM26: 0.01180924574 | AN26: 76.1928 | AO26: 4281.44902 | AP26: 6422.17353 | AQ26: 5362.577092 | AR26: 0.02348649993 | AS26: 76.1928 | AT26: 6006.682177 | AU26: 9010.023265 | AV26: 7523.456682
A27: 15 | B27: 2004.34617 | C27: 3006.519255 | D27: 0.1023065492 | E27: 1974.539033 | F27: 2961.808549 | G27: 29.80713705 | H27: 0.1017767215 | I27: 29.052 | J27: 1998.471501 | K27: 2997.707251 | L27: 2819.741131 | X27: 15 | Y27: 0.01141014776 | Z27: 4278.167912 | AA27: 6417.251867 | AB27: 5358.467959 | AC27: 0.02269276591 | AD27: 6033.313719 | AE27: 9049.970578 | AF27: 7944.198337 | AI27: Pressure | AJ27: Ave Diff Flow | AM27: 0.01141014991 | AN27: 95.3825 | AO27: 4373.550813 | AP27: 6560.32622 | AQ27: 5477.935926 | AR27: 0.02269276894 | AS27: 95.3825 | AT27: 6128.696621 | AU27: 9193.044932 | AV27: 7676.281546
A28: 16 | B28: 2043.473114 | C28: 3065.209671 | D28: 0.09896210493 | E28: 2007.626776 | F28: 3011.440164 | G28: 35.84633845 | H28: 0.09844959757 | I28: 33.929 | J28: 2036.350454 | K28: 3054.525682 | L28: 2873.186398 | X28: 16 | Y28: 0.01103714522 | Z28: 4349.858021 | AA28: 6524.787032 | AB28: 5448.260871 | AC28: 0.02195092982 | AD28: 6134.415155 | AE28: 9201.622733 | AF28: 8077.320847 | AM28: 0.01103714729 | AN28: 114.6288 | AO28: 4464.48723 | AP28: 6696.730845 | AQ28: 5591.835108 | AR28: 0.02195093275 | AS28: 114.6288 | AT28: 6249.044365 | AU28: 9373.566547 | AV28: 7827.018843
A29: 17 | B29: 2082.05685 | C29: 3123.085274 | D29: 0.09582940139 | E29: 2040.17797 | F29: 3060.266955 | G29: 41.87887962 | H29: 0.09533311775 | I29: 38.806 | J29: 2073.694251 | K29: 3110.541376 | L29: 2925.876586 | X29: 17 | Y29: 0.01068775791 | Z29: 4420.385609 | AA29: 6630.578413 | AB29: 5536.597707 | AC29: 0.02125606025 | AD29: 6233.877138 | AE29: 9350.815707 | AF29: 8208.284651 | AI29: 10 | AJ29: =AVERAGE(AI17,AI25) -> 0 | AM29: 0.01068775991 | AN29: 133.9317 | AO29: 4554.317724 | AP29: 6831.476586 | AQ29: 5704.349107 | AR29: 0.02125606309 | AS29: 133.9317 | AT29: 6367.809254 | AU29: 9551.71388 | AV29: 7975.773592
A30: 18 | B30: 2120.107454 | C30: 3180.161181 | D30: 0.09288894722 | E30: 2072.217901 | F30: 3108.326851 | G30: 47.88955344 | H30: 0.09240789168 | I30: 43.683 | J30: 2110.528109 | K30: 3165.792164 | L30: 2977.847277 | X30: 18 | Y30: 0.01035981198 | Z30: 4489.805459 | AA30: 6734.708188 | AB30: 5623.547086 | AC30: 0.02060383379 | AD30: 6331.776926 | AE30: 9497.665389 | AF30: 8337.191479 | AI30: 60 | AJ30: =AVERAGE(AJ17,AJ25) -> 1017.650084 | AM30: 0.01035981392 | AN30: 153.2912 | AO30: 4643.09708 | AP30: 6964.64562 | AQ30: 5815.546541 | AR30: 0.02060383654 | AS30: 153.2912 | AT30: 6485.068548 | AU30: 9727.602822 | AV30: 8122.642562
A31: 19 | B31: 2157.635006 | C31: 3236.452508 | D31: 0.09012357219 | E31: 2103.769927 | F31: 3155.654891 | G31: 53.86507852 | H31: 0.08965683804 | I31: 48.56 | J31: 2146.875328 | K31: 3220.312992 | L31: 3029.131346 | X31: 19 | Y31: 0.01005139245 | Z31: 4558.168183 | AA31: 6837.252274 | AB31: 5709.172399 | AC31: 0.0199904419 | AD31: 6428.185896 | AE31: 9642.278844 | AF31: 8464.135314 | AI31: 106.5 | AJ31: =AVERAGE(AK17,AK25) -> 2091.251307 | AM31: 0.01005139433 | AN31: 172.7073 | AO31: 4730.875911 | AP31: 7096.313866 | AQ31: 5925.490801 | AR31: 0.01999044456 | AS31: 172.7073 | AT31: 6600.893625 | AU31: 9901.340437 | AV31: 8267.715152
A32: 20 | B32: 2194.649582 | C32: 3291.974373 | D32: 0.08751809164 | E32: 2134.855682 | F32: 3202.283523 | G32: 59.79389984 | H32: 0.08706485082 | I32: 53.437 | J32: 2182.757485 | K32: 3274.136228 | L32: 3079.759235 | X32: 20 | Y32: 0.009760805791 | Z32: 4625.520653 | AA32: 6938.280979 | AB32: 5793.532354 | AC32: 0.01941251643 | AD32: 6523.170148 | AE32: 9784.755222 | AF32: 8589.203191 | AM32: 0.009760807624 | AN32: 192.18 | AO32: 4817.701087 | AP32: 7226.55163 | AQ32: 6034.240596 | AR32: 0.01941251902 | AS32: 192.18 | AT32: 6715.350583 | AU32: 10073.02587 | AV32: 8411.074156
A33: 21 | B33: 2231.161262 | C33: 3346.741893 | D33: 0.08505902753 | E33: 2165.495247 | F33: 3248.24287 | G33: 65.6660153 | H33: 0.08461852177 | I33: 58.314 | J33: 2218.194608 | K33: 3327.291912 | L33: 3129.759204 | X33: 21 | Y33: 0.009486548814 | Z33: 4691.906375 | AA33: 7037.859563 | AB33: 5876.681443 | AC33: 0.01886706781 | AD33: 6616.791039 | AE33: 9925.186558 | AF33: 8712.4759 | AM33: 0.009486550596 | AN33: 211.7093 | AO33: 4903.616116 | AP33: 7355.424174 | AQ33: 6141.850417 | AR33: 0.01886707033 | AS33: 211.7093 | AT33: 6828.50078 | AU33: 10242.75117 | AV33: 8552.796421
A34: 22 | B34: 2267.180123 | C34: 3400.770184 | D34: 0.08273437524 | E34: 2195.707299 | F34: 3293.560948 | G34: 71.47282394 | H34: 0.08230590844 | I34: 63.191 | J34: 2253.205327 | K34: 3379.807991 | L34: 3179.157539 | X34: 22 | Y34: 0.009227282654 | Z34: 4757.365821 | AA34: 7136.048732 | AB34: 5958.670359 | AC34: 0.01835143327 | AD34: 6709.105643 | AE34: 10063.65846 | AF34: 8834.028591 | AM34: 0.009227284386 | AN34: 231.2952 | AO34: 4988.661468 | AP34: 7482.992202 | AQ34: 6248.370956 | AR34: 0.01835143572 | AS34: 231.2952 | AT34: 6940.40129 | AU34: 10410.60194 | AV34: 8692.953435
A35: 23 | B35: 2302.716242 | C35: 3454.074364 | D35: 0.08053340755 | E35: 2225.50925 | F35: 3338.263874 | G35: 77.20699284 | H35: 0.08011633918 | I35: 68.068 | J35: 2287.807008 | K35: 3431.710512 | L35: 3227.978742 | X35: 23 | Y35: 0.008981810915 | Z35: 4821.936715 | AA35: 7232.905073 | AB35: 6039.546348 | AC35: 0.0178632334 | AD35: 6800.167159 | AE35: 10200.25074 | AF35: 8953.931315 | AM35: 0.008981812602 | AN35: 250.9377 | AO35: 5072.874868 | AP35: 7609.312302 | AQ35: 6353.849463 | AR35: 0.01786323578 | AS35: 250.9377 | AT35: 7051.105313 | AU35: 10576.65797 | AV35: 8831.611832
A36: 24 | B36: 2337.779699 | C36: 3506.669549 | D36: 0.0784465092 | E36: 2254.917359 | F36: 3382.376039 | G36: 82.8623397 | H36: 0.0780402485 | I36: 72.945 | J36: 2322.01587 | K36: 3483.023805 | L36: 3276.245697 | X36: 24 | Y36: 0.008749061215 | Z36: 4885.654287 | AA36: 7328.48143 | AB36: 6119.35354 | AC36: 0.01740033541 | AD36: 6890.025273 | AE36: 10335.03791 | AF36: 9072.249492 | AM36: 0.008749062858 | AN36: 270.6368 | AO36: 5156.291546 | AP36: 7734.437318 | AQ36: 6458.330063 | AR36: 0.01740033773 | AS36: 270.6368 | AT36: 7160.662533 | AU36: 10740.9938 | AV36: 8968.833841
A37: 25 | B37: 2372.380571 | C37: 3558.570857 | D37: 0.07646503637 | E37: 2283.946842 | F37: 3425.920263 | G37: 88.43372917 | H37: 0.07606903738 | I37: 77.822 | J37: 2355.847085 | K37: 3533.770628 | L37: 3323.979813 | X37: 25 | Y37: 0.00852806952 | Z37: 4948.551499 | AA37: 7422.827248 | AB37: 6198.133219 | AC37: 0.01696082201 | AD37: 6978.72647 | AE37: 10468.0897 | AF37: 9189.044329 | AM37: 0.008528071121 | AN37: 290.3925 | AO37: 5238.944463 | AP37: 7858.416695 | AQ37: 6561.854044 | AR37: 0.01696082427 | AS37: 290.3925 | AT37: 7269.119435 | AU37: 10903.67915 | AV37: 9104.677687
A38: 26 | B38: 2406.528936 | C38: 3609.793404 | D38: 0.07458119709 | E38: 2312.611955 | F38: 3468.917933 | G38: 93.91698083 | H38: 0.07419495417 | I38: 82.699 | J38: 2389.314876 | K38: 3583.972314 | L38: 3371.201155 | X38: 26 | Y38: 0.008317966797 | Z38: 5010.659244 | AA38: 7515.988866 | AB38: 6275.92408 | AC38: 0.01654296485 | AD38: 7066.314316 | AE38: 10599.47147 | AF38: 9304.373194 | AM38: 0.008317968359 | AN38: 310.2048 | AO38: 5320.864515 | AP38: 7981.296772 | AQ38: 6664.460098 | AR38: 0.01654296706 | AS38: 310.2048 | AT38: 7376.519587 | AU38: 11064.77938 | AV38: 9239.197937
A39: 27 | B39: 2440.234872 | C39: 3660.352308 | D39: 0.07278794878 | E39: 2340.926085 | F39: 3511.389127 | G39: 99.30878733 | H39: 0.07241099278 | I39: 87.576 | J39: 2422.432594 | K39: 3633.64889 | L39: 3417.928561 | X39: 27 | Y39: 0.008117967595 | Z39: 5072.006525 | AA39: 7608.009787 | AB39: 6352.762447 | AC39: 0.01614520181 | AD39: 7152.829711 | AE39: 10729.24457 | AF39: 9418.289939 | AM39: 0.00811796912 | AN39: 330.0737 | AO39: 5402.080701 | AP39: 8103.121052 | AQ39: 6766.184551 | AR39: 0.01614520396 | AS39: 330.0737 | AT39: 7482.903888 | AU39: 11224.35583 | AV39: 9372.44582
A40: 28 | B40: 2473.508457 | C40: 3710.262685 | D40: 0.0710789103 | E40: 2368.901816 | F40: 3553.352723 | G40: 104.6066413 | H40: 0.07071080511 | I40: 92.453 | J40: 2455.21279 | K40: 3682.819185 | L40: 3464.179743 | X40: 28 | Y40: 0.007927360232 | Z40: 5132.620609 | AA40: 7698.930913 | AB40: 6428.682475 | AC40: 0.01576611748 | AD40: 7238.311112 | AE40: 10857.46667 | AF40: 9530.8452 | AM40: 0.007927361721 | AN40: 349.9992 | AO40: 5482.620291 | AP40: 8223.930436 | AQ40: 6867.061557 | AR40: 0.01576611958 | AS40: 349.9992 | AT40: 7588.310794 | AU40: 11382.46619 | AV40: 9504.469501
A41: 29 | B41: 2506.359769 | C41: 3759.539653 | D41: 0.06944828607 | E41: 2396.550999 | F41: 3594.826498 | G41: 109.8087699 | H41: 0.0690886256 | I41: 97.33 | J41: 2487.667285 | K41: 3731.500928 | L41: 3509.971376 | X41: 29 | Y41: 0.007745498332 | Z41: 5192.527173 | AA41: 7788.790759 | AB41: 6503.716323 | AC41: 0.01540442632 | AD41: 7322.794727 | AE41: 10984.19209 | AF41: 9642.086656 | AM41: 0.007745499787 | AN41: 369.9813 | AO41: 5562.50896 | AP41: 8343.76344 | AQ41: 6967.123276 | AR41: 0.01540442838 | AS41: 369.9813 | AT41: 7692.776516 | AU41: 11539.16477 | AV41: 9635.314335
A42: 30 | B42: 2538.798886 | C42: 3808.198329 | D42: 0.0678908004 | E42: 2423.884809 | F42: 3635.827214 | G42: 114.9140765 | H42: 0.06753920587 | I42: 102.207 | J42: 2519.807225 | K42: 3779.710838 | L42: 3555.319189 | X42: 30 | Y42: 0.007571793503 | Z42: 5251.750429 | AA42: 7877.625643 | AB42: 6577.894319 | AC42: 0.01505895814 | AD42: 7406.314704 | AE42: 11109.47206 | AF42: 9752.059266 | AM42: 0.007571794925 | AN42: 390.02 | AO42: 5641.770922 | AP42: 8462.656383 | AQ42: 7066.400034 | AR42: 0.01505896015 | AS42: 390.02 | AT42: 7796.335198 | AU42: 11694.5028 | AV42: 9765.023088
A43: 31 | B43: 2570.835886 | C43: 3856.253829 | D43: 0.06640164049 | E43: 2450.913798 | F43: 3676.370698 | G43: 119.9220874 | H43: 0.06605775806 | I43: 107.084 | J43: 2551.643134 | K43: 3827.464701 | L43: 3600.238029 | X43: 31 | Y43: 0.007405708978 | Z43: 5310.313238 | AA43: 7965.469858 | AB43: 6651.245096 | AC43: 0.01472864539 | AD43: 7488.903282 | AE43: 11233.35492 | AF43: 9860.805483 | AM43: 0.007405710368 | AN43: 410.1153 | AO43: 5720.429037 | AP43: 8580.643556 | AQ43: 7164.920466 | AR43: 0.01472864735 | AS43: 410.1153 | AT43: 7899.019081 | AU43: 11848.52862 | AV43: 9893.636144
A44: 32 | B44: =(1800/2154)*(C$4+C$5*$A44+C$6*$A44^2+C$7*$A44^3) -> 2602.480847 | C44: =(1+C$8)*B44 -> 3903.72127 | D44: =($F$8*0.0361)/(14.59+A44) -> 0.06497640674 | E44: =($F$4*$F$7*(14.59+A44)*(D44/($F$6*$F$5))^0.5) -> 2477.647942 | F44: =E44*(1+$C$8) -> 3716.471913 | G44: 124.8329046 | H44: =($J$6*0.0361)/(14.59+A44) -> 0.06463990534 | I44: =($J$4*A44)+$J$5 -> 111.961 | J44: 2583.184962 | K44: 3874.777444 | L44: =J44*(1+$J$8) -> 3644.741937 | X44: 32 | Y44: 0.007246754074 | Z44: =($AA$4*$AA$7*(14.59+X44)*(Y44/($AA$6*$AA$5))^0.5) -> 5368.237217 | AA44: =Z44*(1+$C$8) -> 8052.355825 | AB44: =Z44*(1+$AB$7) -> 6723.795727 | AC44: 0.0144125122 | AD44: =($AE$4*$AE$7*(14.59+X44)*(AC44/($AE$6*$AE$5))^0.5) -> 7570.590943 | AE44: =AD44*(1+$C$8) -> 11355.88642 | AF44: 9968.365444 | AM44: 0.007246755435 | AN44: 430.2672 | AO44: =($AA$4*$AA$7*(14.59+X44)*(AM44/($AA$6*$AA$5))^0.5)+AN44 -> 5798.504921 | AP44: 8697.757381 | AQ44: 7262.711645 | AR44: 0.01441251412 | AS44: 430.2672 | AT44: =($AE$4*$AE$7*(14.59+X44)*(AR44/($AE$6*$AE$5))^0.5)+AS44 -> 8000.858648 | AU44: 12001.28797 | AV44: 10021.19168
A45: 33 | B45: 2633.743847 | C45: 3950.61577 | D45: 0.06361106934 | E45: 2504.096684 | F45: 3756.145026 | G45: 129.6471626 | H45: 0.06328163879 | I45: 116.838 | J45: 2614.442129 | K45: 3921.663193 | L45: 3688.844201 | X45: 33 | Y45: 0.007094479351 | Z45: 5425.542825 | AA45: 8138.314237 | AB45: 6795.57184 | AC45: 0.01410966471 | AD45: 7651.406544 | AE45: 11477.10982 | AF45: 10074.77714 | AM45: 0.007094480683 | AN45: 450.4757 | AO45: 5876.019034 | AP45: 8814.028551 | AQ45: 7359.799198 | AR45: 0.01410966659 | AS45: 450.4757 | AT45: 8101.882754 | AU45: 12152.82413 | AV45: 10147.72584
A46: 34 | B46: 2664.634964 | C46: 3996.952446 | D46: 0.06230193023 | E46: 2530.268974 | F46: 3795.403461 | G46: 134.3659895 | H46: 0.06197927948 | I46: 121.715 | J46: 2645.42356 | K46: 3968.13534 | L46: 3732.557416 | X46: 34 | Y46: 0.006948472367 | Z46: 5482.249453 | AA46: 8223.37418 | AB46: 6866.597723 | AC46: 0.01381928264 | AD46: 7731.377431 | AE46: 11597.06615 | AF46: 10180.07659 | AM46: 0.006948473672 | AN46: 470.7408 | AO46: 5952.990768 | AP46: 8929.486152 | AQ46: 7456.207413 | AR46: 0.01381928448 | AS46: 470.7408 | AT46: 8202.118746 | AU46: 12303.17812 | AV46: 10273.27288
A47: 35 | B47: 2695.164276 | C47: 4042.746414 | D47: 0.06104558963 | E47: 2556.173304 | F47: 3834.259956 | G47: 138.9909717 | H47: 0.06072944525 | I47: 126.592 | J47: 2676.137726 | K47: 4014.206589 | L47: 3775.893534 | X47: 35 | Y47: 0.006808353948 | Z47: 5538.375501 | AA47: 8307.563252 | AB47: 6936.89642 | AC47: 0.01354061188 | AD47: 7810.52955 | AE47: 11715.79432 | AF47: 10284.29794 | AM47: 0.006808355227 | AN47: 491.0625 | AO47: 6029.438521 | AP47: 9044.157782 | AQ47: 7551.959334 | AR47: 0.01354061369 | AS47: 491.0625 | AT47: 8301.592571 | AU47: 12452.38886 | AV47: 10397.86529
A48: 36 | B48: 2725.341861 | C48: 4088.012791 | D48: 0.05983891658 | E48: 2581.817739 | F48: 3872.726609 | G48: 143.5241214 | H48: 0.05952902134 | I48: 131.469 | J48: 2706.592671 | K48: 4059.889006 | L48: 3818.863905 | X48: 36 | Y48: 0.006673774902 | Z48: 5593.938444 | AA48: 8390.907666 | AB48: 7006.489819 | AC48: 0.01327295796 | AD48: 7888.887546 | AE48: 11833.33132 | AF48: 10387.47366 | AM48: 0.006673776155 | AN48: 511.4408 | AO48: 6105.37977 | AP48: 9158.069654 | AQ48: 7647.076851 | AR48: 0.01327295973 | AS48: 511.4408 | AT48: 8400.328872 | AU48: 12600.49331 | AV48: 10521.53394
A49: 37 | B49: 2755.177797 | C49: 4132.766695 | D49: 0.05867902287 | E49: 2607.209949 | F49: 3910.814923 | G49: 147.9678478 | H49: 0.05837513452 | I49: 136.346 | J49: 2736.796044 | K49: 4105.194066 | L49: 3861.479321 | X49: 37 | Y49: 0.006544413109 | Z49: 5648.954898 | AA49: 8473.432348 | AB49: 7075.398734 | AC49: 0.01301568023 | AD49: 7966.474853 | AE49: 11949.71228 | AF49: 10489.63459 | AM49: 0.006544414338 | AN49: 531.8757 | AO49: 6180.831129 | AP49: 9271.246693 | AQ49: 7741.580774 | AR49: 0.01301568197 | AS49: 531.8757 | AT49: 8498.351085 | AU49: 12747.52663 | AV49: 10644.30818
A50: 38 | B50: 2784.682162 | C50: 4177.023242 | D50: 0.05756323997 | E50: 2632.357232 | F50: 3948.535848 | G50: 152.3249298 | H50: 0.05726513006 | I50: 141.223 | J50: 2766.755126 | K50: 4150.132689 | L50: 3903.750054 | X50: 38 | Y50: 0.006419970951 | Z50: 5703.440678 | AA50: 8555.161017 | AB50: 7143.642971 | AC50: 0.01276818679 | AD50: 8043.313773 | AE50: 12064.97066 | AF50: 10590.81011 | AM50: 0.006419972156 | AN50: 552.3672 | AO50: 6255.808414 | AP50: 9383.712621 | AQ50: 7835.490913 | AR50: 0.01276818849 | AS50: 552.3672 | AT50: 8595.68151 | AU50: 12893.52226 | AV50: 10766.21596
A51: 39 | B51: 2813.865033 | C51: 4220.79755 | D51: 0.05648909852 | E51: 2657.266542 | F51: 3985.899813 | G51: 156.5984916 | H51: 0.0561965514 | I51: 146.1 | J51: 2796.476852 | K51: 4194.715278 | L51: 3945.685889 | X51: 39 | Y51: 0.006300173023 | Z51: 5757.41085 | AA51: 8636.116275 | AB51: 7211.241402 | AC51: 0.0125299299 | AD51: 8119.425554 | AE51: 12179.13833 | AF51: 10691.02818 | AM51: 0.006300174206 | AN51: 572.9153 | AO51: 6330.326691 | AP51: 9495.490036 | AQ51: 7928.826137 | AR51: 0.01252993157 | AS51: 572.9153 | AT51: 8692.341396 | AU51: 13038.51209 | AV51: 10887.28387
A52: 40 | B52: 2842.73649 | C52: 4264.104735 | D52: 0.05545431013 | E52: 2681.94451 | F52: 4022.916764 | G52: 160.7919806 | H52: 0.055167122 | I52: 150.977 | J52: 2825.967835 | K52: 4238.951753 | L52: 3987.29616 | X52: 40 | Y52: 0.006184764101 | Z52: 5810.87978 | AA52: 8716.31967 | AB52: 7278.21202 | AC52: 0.01230040197 | AD52: 8194.830456 | AE52: 12292.24568 | AF52: 10790.31549 | AM52: 0.006184765263 | AN52: 593.52 | AO52: 6404.400326 | AP52: 9606.600489 | AQ52: 8021.604442 | AR52: 0.01230040361 | AS52: 593.52 | AT52: 8788.351002 | AU52: 13182.5265 | AV52: 11007.53729
A53: 41 | B53: 2871.30661 | C53: 4306.959915 | D53: 0.05445675103 | E53: 2706.397464 | F53: 4059.596195 | G53: 164.9091464 | H53: 0.05417472908 | I53: 155.854 | J53: 2855.234388 | K53: 4282.851582 | L53: 4028.58977 | X53: 41 | Y53: 0.006073507327 | Z53: 5863.861181 | AA53: 8795.791771 | AB53: 7344.572 | AC53: 0.01207913192 | AD53: 8269.547815 | AE53: 12404.32172 | AF53: 10888.6975 | AM53: 0.006073508467 | AN53: 614.1813 | AO53: 6478.043031 | AP53: 9717.064547 | AQ53: 8113.843 | AR53: 0.01207913353 | AS53: 614.1813 | AT53: 8883.729667 | AU53: 13325.5945 | AV53: 11127.00046
A54: 42 | B54: 2899.585471 | C54: 4349.378206 | D54: 0.0534944476 | E54: 2730.631449 | F54: 4095.947173 | G54: 168.9540219 | H54: 0.05321740926 | I54: 160.731 | J54: 2884.28254 | K54: 4326.42381 | L54: 4069.575227 | X54: 42 | Y54: 0.005966182582 | Z54: 5916.368149 | AA54: 8874.552223 | AB54: 7410.337746 | AC54: 0.01186568198 | AD54: 8343.596104 | AE54: 12515.39416 | AF54: 10986.19853 | AM54: 0.005966183702 | AN54: 634.8992 | AO54: 6551.267904 | AP54: 9826.901857 | AQ54: 8205.558217 | AR54: 0.01186568356 | AS54: 634.8992 | AT54: 8978.49586 | AU54: 13467.74379 | AV54: 11245.69649
A55: 43 | B55: 2927.58315 | C55: 4391.374726 | D55: 0.05256556329 | E55: 2754.652244 | F55: 4131.978367 | G55: 172.930906 | H55: 0.05229333547 | I55: 165.608 | J55: 2913.118055 | K55: 4369.677083 | L55: 4110.260665 | X55: 43 | Y55: 0.005862585037 | Z55: 5968.413206 | AA55: 8952.619809 | AB55: 7475.524942 | AC55: 0.01165964479 | AD55: 8416.992979 | AE55: 12625.48947 | AF55: 11082.84183 | AM55: 0.005862586138 | AN55: 655.6737 | AO55: 6624.087466 | AP55: 9936.1312 | AQ55: 8296.765776 | AR55: 0.01165964634 | AS55: 655.6737 | AT55: 9072.667241 | AU55: 13609.00086 | AV55: 11363.64751
A56: 44 | B56: 2955.309727 | C56: 4432.964591 | D56: 0.05166838692 | E56: 2778.46538 | F56: 4167.69807 | G56: 176.8443473 | H56: 0.05140080542 | I56: 170.485 | J56: 2941.746449 | K56: 4412.619673 | L56: 4150.653865 | X56: 44 | Y56: 0.005762523849 | Z56: 6020.008333 | AA56: 9030.012499 | AB56: 7540.148594 | AC56: 0.01146064078 | AD56: 8489.755337 | AE56: 12734.63301 | AF56: 11178.64964 | AM56: 0.005762524931 | AN56: 676.5048 | AO56: 6696.513698 | AP56: 10044.77055 | AQ56: 8387.480683 | AR56: 0.01146064231 | AS56: 676.5048 | AT56: 9166.260703 | AU56: 13749.39105 | AV56: 11480.87468
A57: 45 | B57: 2982.775279 | C57: 4474.162918 | D57: 0.0508013222 | E57: 2802.076149 | F57: 4203.114223 | G57: 180.6991296 | H57: 0.05053823108 | I57: 175.362 | J57: 2970.173 | K57: 4455.259501 | L57: 4190.762276 | X57: 45 | Y57: 0.005665820982 | Z57: 6071.164999 | AA57: 9106.747499 | AB57: 7604.223068 | AC57: 0.01126831588 | AD57: 8561.899354 | AE57: 12842.84903 | AF57: 11273.64327 | AM57: 0.005665822046 | AN57: 697.3925 | AO57: 6768.558069 | AP57: 10152.8371 | AQ57: 8477.717305 | AR57: 0.01126831738 | AS57: 697.3925 | AT57: 9259.292425 | AU57: 13888.93864 | AV57: 11597.39827
A58: 46 | B58: 3009.989883 | C58: 4514.984825 | D58: 0.0499628782 | E58: 2825.489625 | F58: 4238.234438 | G58: 184.5002576 | H58: 0.04970412923 | I58: 180.239 | J58: 2998.402771 | K58: 4497.604157 | L58: 4230.59304 | X58: 46 | Y58: 0.005572310155 | Z58: 6121.894198 | AA58: 9182.841297 | AB58: 7667.762133 | AC58: 0.01108233938 | AD58: 8633.440532 | AE58: 12950.1608 | AF58: 11367.84313 | AM58: 0.005572311201 | AN58: 718.3368 | AO58: 6840.231573 | AP58: 10260.34736 | AQ58: 8567.48941 | AR58: 0.01108234086 | AS58: 718.3368 | AT58: 9351.777908 | AU58: 14027.66686 | AV58: 11713.23768
A59: 47 | B59: 3036.963618 | C59: 4555.445428 | D59: 0.04915166082 | E59: 2848.710674 | F59: 4273.06601 | G59: 188.2529448 | H59: 0.048897113 | I59: 185.116 | J59: 3026.440612 | K59: 4539.660918 | L59: 4270.153 | X59: 47 | Y59: 0.005481835887 | Z59: 6172.206469 | AA59: 9258.309704 | AB59: 7730.778989 | AC59: 0.01090240207 | AD59: 8704.393735 | AE59: 13056.5906 | AF59: 11461.26879 | AM59: 0.005481836917 | AN59: 739.3377 | AO59: 6911.544749 | AP59: 10367.31712 | AQ59: 8656.810198 | AR59: 0.01090240352 | AS59: 739.3377 | AT59: 9443.732016 | AU59: 14165.59802 | AV59: 11828.41153
A60: 48 | B60: 3063.706563 | C60: 4595.559844 | D60: 0.04836636507 | E60: 2871.743961 | F60: 4307.615942 | G60: 191.9626012 | H60: 0.04811588416 | I60: 189.993 | J60: 3054.29118 | K60: 4581.43677 | L60: 4309.448728 | X60: 48 | Y60: 0.005394252633 | Z60: 6222.111927 | AA60: 9333.16789 | AB60: 7793.286305 | AC60: 0.01072821446 | AD60: 8774.773226 | AE60: 13162.15984 | AF60: 11553.93903 | AM60: 0.005394253646 | AN60: 760.3952 | AO60: 6982.507711 | AP60: 10473.76157 | AQ60: 8745.692339 | AR60: 0.0107282159 | AS60: 760.3952 | AT60: 9535.169011 | AU60: 14302.75352 | AV60: 11942.9377
A61: 49 | B61: 3090.228794 | C61: 4635.343191 | D61: 0.04760576804 | E61: 2894.593971 | F61: 4341.890957 | G61: 195.6348226 | H61: 0.04735922613 | I61: 194.87 | J61: 3081.958945 | K61: 4622.938417 | L61: 4348.48653 | X61: 49 | Y61: 0.005309424002 | Z61: 6271.620281 | AA61: 9407.430422 | AB61: 7855.296244 | AC61: 0.01055950532 | AD61: 8844.5927 | AE61: 13266.88905 | AF61: 11645.87189 | AM61: 0.005309424999 | AN61: 781.5093 | AO61: 7053.13017 | AP61: 10579.69526 | AQ61: 8834.147995 | AR61: 0.01055950673 | AS61: 781.5093 | AT61: 9626.10259 | AU61: 14439.15389 | AV61: 12056.83333
A62: 50 | B62: 3116.54039 | C62: 4674.810585 | D62: 0.04686872256 | E62: 2917.26501 | F62: 4375.897515 | G62: 199.2753803 | H62: 0.04662599767 | I62: 199.747 | J62: 3109.448203 | K62: 4664.172304 | L62: 4387.272467 | X62: 50 | Y62: 0.005227222051 | Z62: 6320.740865 | AA62: 9481.111297 | AB62: 7916.820494 | AC62: 0.01039602018 | AD62: 8913.865318 | AE62: 13370.79798 | AF62: 11737.08468 | AM62: 0.005227223033 | AN62: 802.68 | AO62: 7123.421458 | AP62: 10685.13219 | AQ62: 8922.188854 | AR62: 0.01039602157 | AS62: 802.68 | AT62: 9716.545913 | AU62: 14574.81887 | AV62: 12170.1149
A63: 51 | B63: 3142.651429 | C63: 4713.977143 | D63: 0.04615415139 | E63: 2939.761217 | F63: 4409.641826 | G63: 202.8902116 | H63: 0.04591512715 | I63: 204.624 | J63: 3136.763083 | K63: 4705.144624 | L63: 4425.812367 | X63: 51 | Y63: 0.00514752664 | Z63: 6369.482648 | AA63: 9554.223972 | AB63: 7977.870292 | AC63: 0.0102375201 | AD63: 8982.60373 | AE63: 13473.9056 | AF63: 11827.59408 | AM63: 0.005147527606 | AN63: 823.9073 | AO63: 7193.390546 | AP63: 10790.08582 | AQ63: 9009.826154 | AR63: 0.01023752146 | AS63: 823.9073 | AT63: 9806.51163 | AU63: 14709.76744 | AV63: 12282.79827
A64: 52 | B64: 3168.571989 | C64: 4752.857983 | D64: 0.04546104205 | E64: 2962.086578 | F64: 4443.129867 | G64: 206.4854112 | H64: 0.0452256073 | I64: 209.501 | J64: 3163.907558 | K64: 4745.861338 | L64: 4464.111834 | X64: 52 | Y64: 0.005070224843 | Z64: 6417.854262 | AA64: 9626.781393 | AB64: 8038.456447 | AC64: 0.0100837805 | AD64: 9050.820109 | AE64: 13576.23016 | AF64: 11917.4161 | AM64: 0.005070225795 | AN64: 845.1912 | AO64: 7263.046065 | AP64: 10894.5691 | AQ64: 9097.070702 | AR64: 0.01008378184 | AS64: 845.1912 | AT64: 9896.011913 | AU64: 14844.01787 | AV64: 12394.89867
A65: 53 | B65: 3194.312148 | C65: 4791.468221 | D65: 0.04478844193 | E65: 2984.244925 | F65: 4476.367387 | G65: 210.0672227 | H65: 0.04455649045 | I65: 214.378 | J65: 3190.885454 | K65: 4786.328181 | L65: 4502.176266 | X65: 53 | Y65: 0.00499521042 | Z65: 6465.864015 | AA65: 9698.796022 | AB65: 8098.589365 | AC65: 0.009934590077 | AD65: 9118.52617 | AE65: 13677.78926 | AF65: 12006.56618 | AM65: 0.004995211358 | AN65: 866.5317 | AO65: 7332.396322 | AP65: 10998.59448 | AQ65: 9183.932907 | AR65: 0.009934591402 | AS65: 866.5317 | AT65: 9985.058479 | AU65: 14977.58772 | AV65: 12506.43079
A66: 54 | B66: 3219.881983 | C66: 4829.822975 | D66: 0.044135454 | E66: 3006.239952 | F66: 4509.359928 | G66: 213.642031 | H66: 0.04390688424 | I66: 219.255 | J66: 3217.700453 | K66: 4826.55068 | L66: 4540.010859 | X66: 54 | Y66: 0.004922383325 | Z66: 6513.519907 | AA66: 9770.279861 | AB66: 8158.279068 | AC66: 0.009789749866 | AD66: 9185.733198 | AE66: 13778.5998 | AF66: 12095.05917 | AM66: 0.00492238425 | AN66: 887.9288 | AO66: 7401.449319 | AP66: 11102.17398 | AQ66: 9270.422789 | AR66: 0.009789751172 | AS66: 887.9288 | AT66: 10073.66261 | AU66: 15110.49392 | AV66: 12617.40875
A67: 55 | B67: 3245.291574 | C67: 4867.937361 | D67: 0.04350123279 | E67: 3028.075219 | F67: 4542.112828 | G67: 217.2163553 | H67: 0.04327594755 | I67: 224.132 | J67: 3244.356106 | K67: 4866.534158 | L67: 4577.620622 | X67: 55 | Y67: 0.004851649264 | Z67: 6560.829651 | AA67: 9841.244476 | AB67: 8217.535215 | AC67: 0.009649072328 | AD67: 9252.452068 | AE67: 13878.6781 | AF67: 12182.90939 | AM67: 0.004851650175 | AN67: 909.3825 | AO67: 7470.212767 | AP67: 11205.31915 | AQ67: 9356.550006 | AR67: 0.009649073615 | AS67: 909.3825 | AT67: 10161.83518 | AU67: 15242.75278 | AV67: 12727.84618
A68: 56 | B68: 3270.550997 | C68: 4905.826496 | D68: 0.04288498073 | E68: 3049.754155 | F68: 4574.631233 | G68: 220.796842 | H68: 0.04266288695 | I68: 229.009 | J68: 3270.855834 | K68: 4906.283751 | L68: 4615.010384 | X68: 56 | Y68: 0.004782919285 | Z68: 6607.80068 | AA68: 9911.701021 | AB68: 8276.367117 | AC68: 0.009512380554 | AD68: 9318.693263 | AE68: 13978.03989 | AF68: 12270.13064 | AM68: 0.004782920183 | AN68: 930.8928 | AO68: 7538.694101 | AP68: 11308.04115 | AQ68: 9442.323872 | AR68: 0.009512381823 | AS68: 930.8928 | AT68: 10249.58668 | AU68: 15374.38003 | AV68: 12837.75621
A69: 57 | B69: 3295.670331 | C69: 4943.505497 | D69: 0.04228594482 | E69: 3071.280073 | F69: 4606.920109 | G69: 224.3902587 | H69: 0.04206695334 | I69: 233.886 | J69: 3297.20294 | K69: 4945.804409 | L69: 4652.184803 | X69: 57 | Y69: 0.004716109405 | Z69: 6654.440169 | AA69: 9981.660253 | AB69: 8334.783759 | AC69: 0.009379507519 | AD69: 9384.4669 | AE69: 14076.70035 | AF69: 12356.73625 | AM69: 0.004716110291 | AN69: 952.4597 | AO69: 7606.900493 | AP69: 11410.35074 | AQ69: 9527.753369 | AR69: 0.009379508771 | AS69: 952.4597 | AT69: 10336.92723 | AU69: 15505.39084 | AV69: 12947.15151
A70: 58 | B70: 3320.659655 | C70: 4980.989482 | D70: 0.04170341355 | E70: 3092.656166 | F70: 4638.98425 | G70: 228.0034881 | H70: 0.0414874389 | I70: 238.763 | J70: 3323.40061 | K70: 4985.100915 | L70: 4689.148377 | X70: 58 | Y70: 0.004651140271 | Z70: 6700.755038 | AA70: 10051.13256 | AB70: 8392.793812 | AC70: 0.009250295403 | AD70: 9449.782742 | AE70: 14174.67411 | AF70: 12442.73907 | AM70: 0.004651141145 | AN70: 974.0832 | AO70: 7674.838868 | AP70: 11512.2583 | AQ70: 9612.84717 | AR70: 0.009250296637 | AS70: 974.0832 | AT70: 10423.86657 | AU70: 15635.79986 | AV70: 13056.0443
A71: 59 | B71: 3345.529045 | C71: 5018.293567 | D71: 0.04113671409 | E71: 3113.885522 | F71: 4670.828283 | G71: 231.6435228 | H71: 0.04092367427 | I71: 243.64 | J71: 3349.451922 | K71: 5024.177883 | L71: 4725.905447 | X71: 59 | Y71: 0.004587936843 | Z71: 6746.751975 | AA71: 10120.12796 | AB71: 8450.405648 | AC71: 0.009124594963 | AD71: 9514.650217 | AE71: 14271.97533 | AF71: 12528.15152 | AM71: 0.004587937705 | AN71: 995.7633 | AO71: 7742.515908 | AP71: 11613.77386 | AQ71: 9697.613646 | AR71: 0.00912459618 | AS71: 995.7633 | AT71: 10510.41415 | AU71: 15765.62123 | AV71: 13164.4464
A72: 60 | B72: 3370.288579 | C72: 5055.432869 | D72: 0.04058520968 | E72: 3134.97112 | F72: 4702.456679 | G72: 235.3174597 | H72: 0.04037502601 | I72: 248.517 | J72: 3375.35985 | K72: 5063.039775 | L72: 4762.460209 | X72: 60 | Y72: 0.004526428104 | Z72: 6792.437437 | AA72: 10188.65616 | AB72: 8507.627359 | AC72: 0.009002264959 | AD72: 9579.078433 | AE72: 14368.61765 | AF72: 12612.98558 | AM72: 0.004526428954 | AN72: 1017.5 | AO72: 7809.938075 | AP72: 11714.90711 | AQ72: 9782.060889 | AR72: 0.00900226616 | AS72: 1017.5 | AT72: 10596.57907 | AU72: 15894.86861 | AV72: 13272.36922
A73: 61 | B73: 3394.948337 | C73: 5092.422506 | D73: 0.04004829726 | E73: 3155.915842 | F73: 4733.873762 | G73: 239.0324954 | H73: 0.03984089416 | I73: 253.394 | J73: 3401.127267 | K73: 5101.6909 | L73: 4798.816717 | X73: 61 | Y73: 0.004466546796 | Z73: 6837.817668 | AA73: 10256.7265 | AB73: 8564.466763 | AC73: 0.008883171627 | AD73: 9643.076194 | AE73: 14464.61429 | AF73: 12697.25286 | AM73: 0.004466547635 | AN73: 1039.2933 | AO73: 7877.11161 | AP73: 11815.66742 | AQ73: 9866.196718 | AR73: 0.008883172812 | AS73: 1039.2933 | AT73: 10682.37014 | AU73: 16023.55521 | AV73: 13379.82377
A74: 62 | B74: 3419.518396 | C74: 5129.277593 | D74: 0.03952540527 | E74: 3176.722474 | F74: 4765.083711 | G74: 242.7959214 | H74: 0.03932071014 | I74: 258.271 | J74: 3426.756953 | K74: 5140.135429 | L74: 4834.978893 | X74: 62 | Y74: 0.004408229172 | Z74: 6882.898705 | AA74: 10324.34806 | AB74: 8620.931422 | AC74: 0.008767188188 | AD74: 9706.652016 | AE74: 14559.97802 | AF74: 12780.96456 | AM74: 0.00440823 | AN74: 1061.1432 | AO74: 7944.042552 | AP74: 11916.06383 | AQ74: 9950.028695 | AR74: 0.008767189357 | AS74: 1061.1432 | AT74: 10767.79586 | AU74: 16151.69379 | AV74: 13486.82074
A75: 63 | B75: 3444.008833 | C75: 5166.013249 | D75: 0.03901599162 | E75: 3197.393713 | F75: 4796.09057 | G75: 246.6151198 | H75: 0.03881393465 | I75: 263.148 | J75: 3452.251596 | K75: 5178.377393 | L75: 4870.950532 | X75: 63 | Y75: 0.004351414774 | Z75: 6927.68639 | AA75: 10391.52958 | AB75: 8677.028652 | AC75: 0.008654194398 | AD75: 9769.814135 | AE75: 14654.7212 | AF75: 12864.13152 | AM75: 0.004351415591 | AN75: 1083.0497 | AO75: 8010.73674 | AP75: 12016.10511 | AQ75: 10033.56413 | AR75: 0.008654195552 | AS75: 1083.0497 | AT75: 10852.86449 | AU75: 16279.29673 | AV75: 13593.37042
A76: 64 | B76: =(1800/2154)*(C$4+C$5*$A76+C$6*$A76^2+C$7*$A76^3) -> 3468.429727 | C76: =(1+C$8)*B76 -> 5202.644591 | D76: =($F$8*0.0361)/(14.59+A76) -> 0.0385195418 | E76: =($F$4*$F$7*(14.59+A76)*(D76/($F$6*$F$5))^0.5) -> 3217.932168 | F76: =E76*(1+$C$8) -> 4826.898251 | G76: 250.4975595 | H76: =($J$6*0.0361)/(14.59+A76) -> 0.03832005586 | I76: =($J$4*A76)+$J$5 -> 268.025 | J76: 3477.613799 | K76: 5216.420698 | L76: =J76*(1+$J$8) -> 4906.735303 | X76: 64 | Y76: 0.004296046218 | Z76: =($AA$4*$AA$7*(14.59+X76)*(Y76/($AA$6*$AA$5))^0.5) -> 6972.186374 | AA76: =Z76*(1+$C$8) -> 10458.27956 | AB76: =Z76*(1+$AB$7) -> 8732.765535 | AC76: 0.008544076133 | AD76: =($AE$4*$AE$7*(14.59+X76)*(AC76/($AE$6*$AE$5))^0.5) -> 9832.570524 | AE76: =AD76*(1+$C$8) -> 14748.85579 | AF76: 12946.76426 | AM76: 0.004296047025 | AN76: 1105.0128 | AO76: =($AA$4*$AA$7*(14.59+X76)*(AM76/($AA$6*$AA$5))^0.5)+AN76 -> 8077.199829 | AP76: 12115.79974 | AQ76: 10116.81012 | AR76: 0.008544077273 | AS76: 1105.0128 | AT76: =($AE$4*$AE$7*(14.59+X76)*(AR76/($AE$6*$AE$5))^0.5)+AS76 -> 10937.58398 | AU76: 16406.37597 | AV76: 13699.48282
A77: 65 | B77: 3492.791156 | C77: 5239.186734 | D77: 0.03803556715 | E77: 3238.340364 | F77: 4857.510546 | G77: =B77-E77 -> 254.450792 | H77: 0.03783858763 | I77: 272.902 | J77: 3502.846081 | K77: =J77*(1+$C$8) -> 5254.269122 | L77: 4942.336764 | X77: 65 | Y77: =($AA$8*0.0361)/(14.59+X77) -> 0.004242069007 | Z77: 7016.404133 | AA77: 10524.6062 | AB77: 8788.148926 | AC77: =($AE$8*0.0361)/(14.59+X77) -> 0.008436725007 | AD77: 9894.928902 | AE77: 14842.39335 | AF77: =AD77*(1+$AF$7) -> 13028.87292 | AM77: =($AO$7*0.0361)/(14.59+X77) -> 0.004242069804 | AN77: =$AO$4*X77^2+$AO$5*X77+$AO$6 -> 1127.0325 | AO77: 8143.437292 | AP77: =AO77*(1+$C$8) -> 12215.15594 | AQ77: =AO77*(1+$AO$8) -> 10199.7735 | AR77: =($AT$7*0.0361)/(14.59+X77) -> 0.008436726132 | AS77: =$AT$4*X77^2+$AT$5*X77+$AT$6 -> 1127.0325 | AT77: 11021.96206 | AU77: =AT77*(1+$C$8) -> 16532.94309 | AV77: =AT77*(1+$AO$8) -> 13805.16759
A78: 66 | B78: 3517.103198 | C78: 5275.654797 | D78: 0.0375636033 | E78: 3258.62075 | F78: 4887.931125 | G78: 258.4824479 | H78: 0.037369068 | I78: 277.779 | J78: 3527.950885 | K78: 5291.926327 | L78: 4977.758359 | X78: 66 | Y78: 0.004189431347 | Z78: 7060.34497 | AA78: 10590.51745 | AB78: 8843.185467 | AC78: 0.008332038011 | AD78: 9956.896748 | AE78: 14935.34512 | AF78: 13110.46736 | AM78: 0.004189432134 | AN78: 1149.1088 | AO78: 8209.454433 | AP78: 12314.18165 | AQ78: 10282.46093 | AR78: 0.008332039123 | AS78: 1149.1088 | AT78: 11106.00621 | AU78: 16659.00932 | AV78: 13910.43411
A79: 67 | B79: 3541.37593 | C79: 5312.063896 | D79: 0.0371032086 | E79: 3278.775697 | F79: 4918.163545 | G79: 262.6002336 | H79: 0.0369110576 | I79: 282.656 | J79: 3552.930574 | K79: 5329.395862 | L79: 5013.003424 | X79: 67 | Y79: 0.004138083984 | Z79: 7104.014021 | AA79: 10656.02103 | AB79: 8897.881593 | AC79: 0.008229917187 | AD79: 10018.48131 | AE79: 15027.72196 | AF79: 13191.55712 | AM79: 0.004138084762 | AN79: 1171.2417 | AO79: 8275.256388 | AP79: 12412.88458 | AQ79: 10364.87884 | AR79: 0.008229918285 | AS79: 1171.2417 | AT79: 11189.72368 | AU79: 16784.58551 | AV79: 14015.29145
A80: 68 | B80: 3565.619432 | C80: 5348.429148 | D80: 0.03665396283 | E80: 3298.807504 | F80: 4948.211256 | G80: 266.8119278 | H80: 0.03646413839 | I80: 287.533 | J80: 3577.787444 | K80: 5366.681165 | L80: 5048.075196 | X80: 68 | Y80: 0.00408798005 | Z80: 7147.41627 | AA80: 10721.12441 | AB80: 8952.243546 | AC80: 0.008130269322 | AD80: 10079.68961 | AE80: 15119.53441 | AF80: 13272.15145 | AM80: 0.004087980817 | AN80: 1193.4312 | AO80: 8340.848141 | AP80: 12511.27221 | AQ80: 10447.03346 | AR80: 0.008130270407 | AS80: 1193.4312 | AT80: 11273.12148 | AU80: 16909.68222 | AV80: 14119.74841
A81: 69 | B81: 3589.84378 | C81: 5384.76567 | D81: 0.03621546584 | E81: 3318.718401 | F81: 4978.077602 | G81: 271.1253787 | H81: 0.03602791231 | I81: 292.41 | J81: 3602.523716 | K81: 5403.785575 | L81: 5082.976812 | X81: 69 | Y81: 0.004039074917 | Z81: 7190.556548 | AA81: 10785.83482 | AB81: 9006.277375 | AC81: 0.008033005662 | AD81: 10140.52846 | AE81: 15210.79269 | AF81: 13352.25932 | AM81: 0.004039075675 | AN81: 1215.6773 | AO81: 8406.234523 | AP81: 12609.35178 | AQ81: 10528.93085 | AR81: 0.008033006734 | AS81: 1215.6773 | AT81: 11356.20644 | AU81: 17034.30965 | AV81: 14223.81353
A82: 70 | B82: 3614.059053 | C82: 5421.088579 | D82: 0.03578733644 | E82: 3338.510552 | F82: 5007.765828 | G82: 275.548501 | H82: 0.03560200012 | I82: 297.287 | J82: 3627.141551 | K82: 5440.712326 | L82: 5117.711318 | X82: 70 | Y82: 0.00399132607 | Z82: 7233.439541 | AA82: 10850.15931 | AB82: 9059.988952 | AC82: 0.007938041652 | AD82: 10201.00448 | AE82: 15301.50671 | AF82: 13431.88944 | AM82: 0.00399132682 | AN82: 1237.98 | AO82: 8471.42022 | AP82: 12707.13033 | AQ82: 10610.57689 | AR82: 0.007938042711 | AS82: 1237.98 | AT82: 11438.98516 | AU82: 17158.47773 | AV82: 14327.49508
A83: 71 | B83: 3638.275329 | C83: 5457.412993 | D83: 0.03536921124 | E83: 3358.186056 | F83: 5037.279083 | G83: 280.0892732 | H83: 0.03518604031 | I83: 302.164 | J83: 3651.64304 | K83: 5477.46456 | L83: 5152.281667 | X83: 71 | Y83: 0.003944692982 | Z83: 7276.069799 | AA83: 10914.1047 | AB83: 9113.383974 | AC83: 0.007845296686 | AD83: 10261.12407 | AE83: 15391.68611 | AF83: 13511.05024 | AM83: 0.003944693722 | AN83: 1260.3393 | AO83: 8536.409782 | AP83: 12804.61467 | AQ83: 10691.97726 | AR83: 0.007845297732 | AS83: 1260.3393 | AT83: 11521.46406 | AU83: 17282.19608 | AV83: 14430.8011
A84: 72 | B84: 3662.502685 | C84: 5493.754028 | D84: 0.03496074362 | E84: 3377.746951 | F84: 5066.620426 | G84: 284.7557347 | H84: 0.03477968807 | I84: 307.041 | J84: 3676.030218 | K84: 5514.045327 | L84: 5186.690729 | X84: 72 | Y84: 0.003899136994 | Z84: 7318.451738 | AA84: 10977.67761 | AB84: 9166.467974 | AC84: 0.007754693883 | AD84: 10320.89347 | AE84: 15481.34021 | AF84: 13589.74994 | AM84: 0.003899137726 | AN84: 1282.7552 | AO84: 8601.207625 | AP84: 12901.81144 | AQ84: 10773.1375 | AR84: 0.007754694917 | AS84: 1282.7552 | AT84: 11603.64936 | AU84: 17405.47404 | AV84: 14533.73938
A85: 73 | B85: 3686.751201 | C85: 5530.126801 | D85: 0.03456160281 | E85: 3397.195217 | F85: 5095.792825 | G85: 289.5559839 | H85: 0.03438261434 | I85: 311.918 | J85: 3700.305059 | K85: 5550.457589 | L85: 5220.941289 | X85: 73 | Y85: 0.003854621216 | Z85: 7360.589648 | AA85: 11040.88447 | AB85: 9219.246323 | AC85: 0.007666159873 | AD85: 10380.31873 | AE85: 15570.4781 | AF85: 13667.9965 | AM85: 0.00385462194 | AN85: 1305.2277 | AO85: 8665.818039 | AP85: 12998.72706 | AQ85: 10854.06298 | AR85: 0.007666160896 | AS85: 1305.2277 | AT85: 11685.54712 | AU85: 17528.32068 | AV85: 14636.31752
A86: 74 | B86: 3711.030953 | C86: 5566.546429 | D86: 0.03417147296 | E86: 3416.532777 | F86: 5124.799166 | G86: 294.4981753 | H86: 0.03399450491 | I86: 316.795 | J86: 3724.469482 | K86: 5586.704223 | L86: 5255.036054 | X86: 74 | Y86: 0.003811110422 | Z86: 7402.487696 | AA86: 11103.73154 | AB86: 9271.724242 | AC86: 0.0075796246 | AD86: 10439.40572 | AE86: 15659.10858 | AF86: 13745.79766 | AM86: 0.003811111138 | AN86: 1327.7568 | AO86: 8730.245191 | AP86: 13095.36779 | AQ86: 10934.75892 | AR86: 0.007579625611 | AS86: 1327.7568 | AT86: 11767.16322 | AU86: 17650.74483 | AV86: 14738.54286
A87: 75 | B87: 3735.352019 | C87: 5603.028029 | D87: 0.03379005235 | E87: 3435.761502 | F87: 5153.642253 | G87: 299.5905177 | H87: 0.0336150596 | I87: 321.672 | J87: =($F$4*$F$7*(14.59+A87)*(H87/($F$6*$F$5))^0.5)+I87 -> 3748.525351 | K87: 5622.788026 | L87: 5288.977655 | X87: 75 | Y87: =($AA$8*0.0361)/(14.59+X87) -> 0.00376857096 | Z87: =($AA$4*$AA$7*(14.59+X87)*(Y87/($AA$6*$AA$5))^0.5) -> 7444.149933 | AA87: =Z87*(1+$C$8) -> 11166.2249 | AB87: 9323.906803 | AC87: =($AE$8*0.0361)/(14.59+X87) -> 0.007495021133 | AD87: =($AE$4*$AE$7*(14.59+X87)*(AC87/($AE$6*$AE$5))^0.5) -> 10498.16016 | AE87: =AD87*(1+$C$8) -> 15747.24024 | AF87: 13823.16093 | AM87: 0.003768571668 | AN87: 1350.3425 | AO87: 8794.493132 | AP87: 13191.7397 | AQ87: 11015.2304 | AR87: 0.007495022133 | AS87: 1350.3425 | AT87: 11848.50336 | AU87: 17772.75504 | AV87: 14840.42257
A88: 76 | B88: 3759.724479 | C88: 5639.586719 | D88: 0.03341705254 | E88: 3454.883207 | F88: 5182.324811 | G88: 304.8412719 | H88: 0.0332439915 | I88: 326.549 | J88: 3772.474478 | K88: 5658.711717 | L88: 5322.76865 | X88: 76 | Y88: 0.003726970662 | Z88: 7485.580295 | AA88: 11228.37044 | AB88: 9375.798938 | AC88: 0.007412285499 | AD88: 10556.58759 | AE88: 15834.88139 | AF88: 13900.09363 | AM88: 0.003726971362 | AN88: 1372.9848 | AO88: 8858.565797 | AP88: 13287.8487 | AQ88: 11095.48234 | AR88: 0.007412286487 | AS88: 1372.9848 | AT88: 11929.57309 | AU88: 17894.35964 | AV88: 14941.9636
A89: 77 | B89: 3784.158409 | C89: 5676.237614 | D89: 0.03305219773 | E89: 3473.899661 | F89: 5210.849491 | G89: 310.2587486 | H89: 0.0328810262 | I89: 331.426 | J89: 3796.318626 | K89: 5694.477939 | L89: 5356.411524 | X89: 77 | Y89: 0.003686278767 | Z89: 7526.782611 | AA89: 11290.17392 | AB89: 9427.405443 | AC89: 0.007331356516 | AD89: 10614.69342 | AE89: 15922.04013 | AF89: 13976.60287 | AM89: 0.00368627946 | AN89: 1395.6837 | AO89: 8922.467018 | AP89: 13383.70053 | AQ89: 11175.51955 | AR89: 0.007331357494 | AS89: 1395.6837 | AT89: 12010.37783 | AU89: 18015.56674 | AV89: 15043.1727
A90: 78 | B90: 3808.663889 | C90: 5712.995833 | D90: 0.032695224 | E90: 3492.812582 | F90: 5239.218873 | G90: 315.8513067 | H90: 0.03252590117 | I90: 336.303 | J90: 3820.05951 | K90: 5730.089266 | L90: 5389.908698 | X90: 78 | Y90: 0.003646465842 | Z90: 7567.760607 | AA90: 11351.64091 | AB90: 9478.730982 | AC90: 0.007252175649 | AD90: 10672.4829 | AE90: 16008.72435 | AF90: 14052.69556 | AM90: 0.003646466527 | AN90: 1418.4392 | AO90: 8986.200517 | AP90: 13479.30078 | AQ90: 11255.34669 | AR90: 0.007252176616 | AS90: 1418.4392 | AT90: 12090.92281 | AU90: 18136.38422 | AV90: 15144.05646
A91: 79 | B91: 3833.250994 | C91: 5749.876492 | D91: 0.03234587872 | E91: 3511.623643 | F91: 5267.435465 | G91: 321.6273513 | H91: 0.0321783651 | I91: 341.18 | J91: 3843.698799 | K91: 5765.548198 | L91: 5423.262525 | X91: 79 | Y91: 0.003607503711 | Z91: 7608.517906 | AA91: 11412.77686 | AB91: 9529.780097 | AC91: 0.007174686861 | AD91: 10729.96114 | AE91: 16094.94172 | AF91: 14128.37844 | AM91: 0.003607504388 | AN91: 1441.2513 | AO91: 9049.76992 | AP91: 13574.65488 | AQ91: 11334.96829 | AR91: 0.007174687818 | AS91: 1441.2513 | AT91: 12171.21316 | AU91: 18256.81974 | AV91: 15244.62129
A92: 80 | B92: 3857.929805 | C92: 5786.894708 | D92: 0.03200391997 | E92: 3530.334473 | F92: 5295.501709 | G92: 327.5953323 | H92: 0.03183817729 | I92: 346.057 | J92: 3867.238115 | K92: 5800.857173 | L92: 5456.475298 | X92: 80 | Y92: 0.003569365391 | Z92: 7649.058037 | AA92: 11473.58706 | AB92: 9580.557204 | AC92: 0.007098836487 | AD92: 10787.13312 | AE92: 16180.69969 | AF92: 14203.65806 | AM92: 0.003569366061 | AN92: 1464.12 | AO92: 9113.178755 | AP92: 13669.76813 | AQ92: 11414.38877 | AR92: 0.007098837434 | AS92: 1464.12 | AT92: 12251.25384 | AU92: 18376.88077 | AV92: 15344.87341
A93: 81 | B93: 3882.710398 | C93: 5824.065597 | D93: 0.03166911591 | E93: 3548.946656 | F93: 5323.419984 | G93: 333.7637423 | H93: 0.03150510712 | I93: 350.934 | J93: 3890.679042 | K93: 5836.018562 | L93: 5489.549247 | X93: 81 | Y93: 0.003532025027 | Z93: 7689.384434 | AA93: 11534.07665 | AB93: 9631.066608 | AC93: 0.007024573107 | AD93: 10844.00368 | AE93: 16266.00553 | AF93: 14278.54079 | AM93: 0.00353202569 | AN93: 1487.0453 | AO93: 9176.430456 | AP93: 13764.64568 | AQ93: 11493.61245 | AR93: 0.007024574044 | AS93: 1487.0453 | AT93: 12331.04971 | AU93: 18496.57456 | AV93: 15444.81889
A94: 82 | B94: 3907.602852 | C94: 5861.404279 | D94: 0.03134124433 | E94: 3567.461737 | F94: 5351.192606 | G94: 340.1411152 | H94: 0.03117893353 | I94: 355.811 | J94: 3914.023117 | K94: 5871.034676 | L94: 5522.486544 | X94: 82 | Y94: 0.003495457835 | Z94: 7729.500443 | AA94: 11594.25066 | AB94: 9681.312496 | AC94: 0.006951847431 | AD94: 10900.57754 | AE94: 16350.86631 | AF94: 14353.03285 | AM94: 0.003495458492 | AN94: 1510.0272 | AO94: 9239.528369 | AP94: 13859.29255 | AQ94: 11572.6435 | AR94: 0.006951848358 | AS94: 1510.0272 | AT94: 12410.60547 | AU94: 18615.90821 | AV94: 15544.46363
A95: 83 | B95: 3932.617245 | C95: 5898.925868 | D95: 0.03102009212 | E95: 3585.88122 | F95: 5378.82183 | G95: 346.736025 | H95: 0.03085944451 | I95: 360.688 | J95: 3937.271843 | K95: 5905.907764 | L95: 5555.289307 | X95: 83 | Y95: 0.003459640048 | Z95: 7769.409323 | AA95: 11654.11398 | AB95: 9731.298953 | AC95: 0.006880612187 | AD95: 10956.8593 | AE95: 16435.28894 | AF95: 14427.14029 | AM95: 0.003459640698 | AN95: 1533.0657 | AO95: 9302.475752 | AP95: 13953.71363 | AQ95: 11651.48601 | AR95: 0.006880613105 | AS95: 1533.0657 | AT95: 12489.92573 | AU95: 18734.88859 | AV95: 15643.81341
A96: 84 | B96: 3957.763655 | C96: 5936.645482 | D96: 0.03070545481 | E96: 3604.206571 | F96: 5406.309856 | G96: 353.5570841 | H96: 0.03054643665 | I96: 365.565 | J96: 3960.42668 | K96: 5940.640019 | L96: 5587.959598 | X96: 84 | Y96: 0.003424548862 | Z96: 7809.114249 | AA96: 11713.67137 | AB96: 9781.029954 | AC96: 0.006810822024 | AD96: 11012.85342 | AE96: 16519.28013 | AF96: 14500.869 | AM96: 0.003424549505 | AN96: 1556.1608 | AO96: 9365.275782 | AP96: 14047.91367 | AQ96: 11730.14396 | AR96: 0.006810822932 | AS96: 1556.1608 | AT96: 12569.01496 | AU96: 18853.52244 | AV96: 15742.87382
A97: 85 | B97: 3983.052159 | C97: 5974.578238 | D97: 0.03039713616 | E97: 3622.439217 | F97: 5433.658826 | G97: 360.6129417 | H97: 0.03023971473 | I97: 370.442 | J97: 3983.489053 | K97: 5975.233579 | L97: 5620.499428 | X97: 85 | Y97: 0.003390162389 | Z97: 7848.618316 | AA97: 11772.92747 | AB97: 9830.509377 | AC97: 0.00674243341 | AD97: 11068.56429 | AE97: 16602.84643 | AF97: 14574.22473 | AM97: 0.003390163025 | AN97: 1579.3125 | AO97: 9427.931553 | AP97: 14141.89733 | AQ97: 11808.62123 | AR97: 0.00674243431 | AS97: 1579.3125 | AT97: 12647.87753 | AU97: 18971.81629 | AV97: 15841.65033
A98: 86 | B98: 4008.492836 | C98: 6012.739253 | D98: 0.03009494771 | E98: 3640.580553 | F98: 5460.870829 | G98: 367.9122831 | H98: 0.02993909126 | I98: 375.319 | J98: 4006.460352 | K98: 6009.690528 | L98: 5652.910757 | X98: 86 | Y98: 0.003356459611 | Z98: 7887.924543 | AA98: 11831.88682 | AB98: 9879.741002 | AC98: 0.006675404546 | AD98: 11123.99615 | AE98: 16685.99422 | AF98: 14647.21309 | AM98: 0.003356460242 | AN98: 1602.5208 | AO98: 9490.446084 | AP98: 14235.66913 | AQ98: 11886.92158 | AR98: 0.006675405437 | AS98: 1602.5208 | AT98: 12726.51769 | AU98: 19089.77653 | AV98: 15940.14828
A99: 87 | B99: 4034.095763 | C99: 6051.143645 | D99: 0.02979870843 | E99: 3658.631935 | F99: 5487.947903 | G99: 375.4638279 | H99: 0.02964438616 | I99: 380.196 | J99: 4029.341932 | K99: 6044.012898 | L99: 5685.195496 | X99: 87 | Y99: 0.00332342034 | Z99: 7927.035873 | AA99: 11890.55381 | AB99: 9928.728515 | AC99: 0.006609695278 | AD99: 11179.15315 | AE99: 16768.72972 | AF99: 14719.83954 | AM99: 0.003323420964 | AN99: 1625.7857 | AO99: 9552.822317 | AP99: 14329.23348 | AQ99: 11965.04872 | AR99: 0.00660969616 | AS99: 1625.7857 | AT99: 12804.93959 | AU99: 19207.40939 | AV99: 16038.37285
A100: 88 | B100: 4059.871019 | C100: 6089.806529 | D100: 0.02950824437 | E100: 3676.59469 | F100: 5514.892035 | G100: 383.2763292 | H100: 0.02935542636 | I100: 385.073 | J100: 4052.135113 | K100: 6078.20267 | L100: 5717.355511 | X100: 88 | Y100: 0.003291025171 | Z100: 7965.955175 | AA100: 11948.93276 | AB100: 9977.475511 | AC100: 0.006545267017 | AD100: 11234.03934 | AE100: 16851.05902 | AF100: 14792.10942 | AM100: 0.003291025789 | AN100: 1649.1072 | AO100: 9615.063123 | AP100: 14422.59468 | AQ100: 12043.00623 | AR100: 0.00654526789 | AS100: 1649.1072 | AT100: 12883.14729 | AU100: 19324.72094 | AV100: 16136.32913
A101: 89 | B101: 4085.828682 | C101: 6128.743024 | D101: 0.02922338826 | E101: 3694.47011 | F101: 5541.705165 | G101: 391.3585723 | H101: 0.02907204547 | I101: 389.95 | J101: 4074.841186 | K101: 6112.261779 | L101: 5749.392619 | X101: 89 | Y101: 0.003259255452 | Z101: 8004.685252 | AA101: 12007.02788 | AB101: 10025.9855 | AC101: 0.006482082666 | AD101: 11288.65868 | AE101: 16932.98803 | AF101: 14864.02792 | AM101: 0.003259256064 | AN101: 1672.4853 | AO101: 9677.171303 | AP101: 14515.75696 | AQ101: 12120.79763 | AR101: 0.00648208353 | AS101: 1672.4853 | AT101: 12961.14474 | AU101: 19441.7171 | AV101: 16234.02206
A102: 90 | B102: 4111.97883 | C102: 6167.968245 | D102: 0.02894397925 | E102: 3712.259457 | F102: 5568.389185 | G102: 399.7193734 | H102: 0.02879408347 | I102: 394.827 | J102: 4097.461409 | K102: 6146.192114 | L102: 5781.308597 | X102: 90 | Y102: 0.003228093243 | Z102: 8043.228836 | AA102: 12064.84325 | AB102: 10074.2619 | AC102: 0.006420106543 | AD102: 11343.01502 | AE102: 17014.52253 | AF102: 14935.60011 | AM102: 0.003228093849 | AN102: 1695.92 | AO102: 9739.149591 | AP102: 14608.72439 | AQ102: 12198.42634 | AR102: 0.006420107399 | AS102: 1695.92 | AT102: 13038.93578 | AU102: 19558.40366 | AV102: 16331.45647
A103: 91 | B103: 4138.33154 | C103: 6207.497311 | D103: 0.02866986258 | E103: 3729.963961 | F103: 5594.945942 | G103: 408.3675792 | H103: 0.0285213864 | I103: 399.704 | J103: 4119.99701 | K103: 6179.995515 | L103: 5813.105178 | X103: 91 | Y103: 0.003197521283 | Z103: 8081.588596 | AA103: 12122.38289 | AB103: 10122.30806 | AC103: 0.006359304322 | AD103: 11397.11212 | AE103: 17095.66818 | AF103: 15006.83096 | AM103: 0.003197521884 | AN103: 1719.4113 | AO103: 9801.000655 | AP103: 14701.50098 | AQ103: 12275.89569 | AR103: 0.00635930517 | AS103: 1719.4113 | AT103: 13116.52418 | AU103: 19674.78627 | AV103: 16428.63707
A104: 92 | B104: 4164.896891 | C104: 6247.345337 | D104: 0.02840088929 | E104: 3747.584826 | F104: 5621.377239 | G104: 417.3120651 | H104: 0.02825380608 | I104: 404.581 | J104: 4142.449188 | K104: 6213.673782 | L104: 5844.784053 | X104: 92 | Y104: 0.00316752296 | Z104: 8119.767137 | AA104: 12179.65071 | AB104: 10170.12725 | AC104: 0.006299642962 | AD104: 11450.95365 | AE104: 17176.43047 | AF104: 15077.72531 | AM104: 0.003167523555 | AN104: 1742.9592 | AO104: 9862.727099 | AP104: 14794.09065 | AQ104: 12353.20896 | AR104: 0.006299643802 | AS104: 1742.9592 | AT104: 13193.91361 | AU104: 19790.87042 | AV104: 16525.56846
A105: 93 | B105: 4191.684961 | C105: 6287.527442 | D105: 0.02813691598 | E105: 3765.123226 | F105: 5647.684839 | G105: 426.5617348 | H105: 0.02799119983 | I105: 409.458 | J105: 4164.819115 | K105: 6247.228672 | L105: 5876.346877 | X105: 93 | Y105: 0.003138082278 | Z105: 8157.767003 | AA105: 12236.65051 | AB105: 10217.72263 | AC105: 0.006241090653 | AD105: 11504.5432 | AE105: 17256.81481 | AF105: 15148.28787 | AM105: 0.003138082867 | AN105: 1766.5637 | AO105: 9924.331469 | AP105: 14886.4972 | AQ105: 12430.36933 | AR105: 0.006241091485 | AS105: 1766.5637 | AT105: 13271.10767 | AU105: 19906.66151 | AV105: 16622.25514
A106: 94 | B106: 4218.705827 | C106: 6328.058741 | D106: 0.02787780449 | E106: 3782.580308 | F106: 5673.870462 | G106: 436.1255192 | H106: 0.02773343024 | I106: 414.335 | J106: 4187.107934 | K106: 6280.661902 | L106: 5907.795262 | X106: 94 | Y106: 0.003109183832 | Z106: 8195.590681 | AA106: 12293.38602 | AB106: 10265.09734 | AC106: 0.006183616754 | AD106: 11557.88429 | AE106: 17336.82643 | AF106: 15218.52326 | AM106: 0.003109184416 | AN106: 1790.2248 | AO106: 9985.81625 | AP106: 14978.72438 | AQ106: 12507.37991 | AR106: 0.006183617579 | AS106: 1790.2248 | AT106: 13348.10986 | AU106: 20022.16479 | AV106: 16718.7015
A107: 95 | B107: 4245.969568 | C107: 6368.954352 | D107: 0.02762342175 | E107: 3799.957193 | F107: 5699.935789 | G107: 446.0123757 | H107: 0.0274803649 | I107: 419.212 | J107: 4209.316765 | K107: 6313.975147 | L107: 5939.130786 | X107: 95 | Y107: 0.003080812778 | Z107: 8233.240597 | AA107: 12349.8609 | AB107: 10312.25442 | AC107: 0.006127191745 | AD107: 11610.98032 | AE107: 17416.47049 | AF107: 15288.43599 | AM107: 0.003080813356 | AN107: 1813.9425 | AO107: 10047.18387 | AP107: 15070.77581 | AQ107: 12584.24375 | AR107: 0.006127192562 | AS107: 1813.9425 | AT107: 13424.9236 | AU107: 20137.3854 | AV107: 16814.91182
A108: 96 | B108: =(1800/2154)*(C$4+C$5*$A108+C$6*$A108^2+C$7*$A108^3) -> 4273.486262 | C108: =(1+C$8)*B108 -> 6410.229393 | D108: 0.02737363948 | E108: =($F$4*$F$7*(14.59+A108)*(D108/($F$6*$F$5))^0.5) -> 3817.254975 | F108: =E108*(1+$C$8) -> 5725.882462 | G108: 456.2312869 | H108: 0.02723187621 | I108: 424.089 | J108: 4231.446698 | K108: 6347.170047 | L108: 5970.35499 | X108: 96 | Y108: 0.003052954809 | Z108: 8270.719126 | AA108: 12406.07869 | AB108: =Z108*(1+$AB$7) -> 10359.19682 | AC108: 0.006071787172 | AD108: 11663.83466 | AE108: 17495.75199 | AF108: 15358.03047 | AM108: 0.003052955382 | AN108: 1837.7168 | AO108: =($AA$4*$AA$7*(14.59+X108)*(AM108/($AA$6*$AA$5))^0.5)+AN108 -> 10108.4367 | AP108: 15162.65505 | AQ108: 12660.96381 | AR108: 0.006071787982 | AS108: 1837.7168 | AT108: =($AE$4*$AE$7*(14.59+X108)*(AR108/($AE$6*$AE$5))^0.5)+AS108 -> 13501.55224 | AU108: 20252.32836 | AV108: 16910.89031
A109: 97 | B109: =(1800/2154)*(C$4+C$5*$A109+C$6*$A109^2+C$7*$A109^3) -> 4301.265986 | C109: =(1+C$8)*B109 -> 6451.898979 | D109: 0.02712833399 | E109: =($F$4*$F$7*(14.59+A109)*(D109/($F$6*$F$5))^0.5) -> 3834.474726 | F109: =E109*(1+$C$8) -> 5751.712089 | G109: 466.7912603 | H109: 0.02698784111 | I109: 428.966 | J109: 4253.498802 | K109: 6380.248202 | L109: 6001.469382 | X109: 97 | Y109: 0.003025596131 | Z109: 8308.028586 | AA109: 12462.04288 | AB109: 10405.92747 | AC109: 0.006017375601 | AD109: 11716.45056 | AE109: 17574.67585 | AF109: 15427.311 | AM109: 0.0030255967 | AN109: 1861.5477 | AO109: 10169.57707 | AP109: 15254.3656 | AQ109: 12737.543 | AR109: 0.006017376404 | AS109: 1861.5477 | AT109: 13577.99905 | AU109: 20366.99857 | AV109: 17006.64105
A110: 98 | B110: =(1800/2154)*(C$4+C$5*$A110+C$6*$A110^2+C$7*$A110^3) -> 4329.318819 | C110: =(1+C$8)*B110 -> 6493.978228 | D110: 0.026887386 | E110: =($F$4*$F$7*(14.59+A110)*(D110/($F$6*$F$5))^0.5) -> 3851.617491 | F110: =E110*(1+$C$8) -> 5777.426237 | G110: 477.7013275 | H110: 0.02674814095 | I110: 433.843 | J110: 4275.47412 | K110: 6413.21118 | L110: 6032.475433 | X110: 98 | Y110: 0.002998723442 | Z110: 8345.171245 | AA110: 12517.75687 | AB110: 10452.44919 | AC110: 0.005963930574 | AD110: 11768.83124 | AE110: 17653.24686 | AF110: 15496.2818 | AM110: 0.002998724005 | AN110: 1885.4352 | AO110: 10230.60723 | AP110: 15345.91084 | AQ110: 12813.98417 | AR110: 0.005963931369 | AS110: 1885.4352 | AT110: 13654.26722 | AU110: 20481.40083 | AV110: 17102.16804
A111: 99 | B111: =(1800/2154)*(C$4+C$5*$A111+C$6*$A111^2+C$7*$A111^3) -> 4357.654838 | C111: =(1+C$8)*B111 -> 6536.482258 | D111: 0.02665068043 | E111: =($F$4*$F$7*(14.59+A111)*(D111/($F$6*$F$5))^0.5) -> 3868.684296 | F111: =E111*(1+$C$8) -> 5803.026443 | G111: 488.9705428 | H111: 0.02651266124 | I111: 438.72 | J111: 4297.373674 | K111: 6446.060511 | L111: 6063.374584 | X111: 99 | Y111: 0.002972323904 | Z111: 8382.149321 | AA111: 12573.22398 | AB111: 10498.76477 | AC111: 0.005911426563 | AD111: 11820.97981 | AE111: 17731.46971 | AF111: 15564.94698 | AM111: 0.002972324463 | AN111: 1909.3793 | AO111: 10291.52941 | AP111: 15437.29411 | AQ111: 12890.29008 | AR111: 0.005911427352 | AS111: 1909.3793 | AT111: 13730.35989 | AU111: 20595.53984 | AV111: 17197.47522
A112: 100 | B112: =(1800/2154)*(C$4+C$5*$A112+C$6*$A112^2+C$7*$A112^3) -> 4386.284123 | C112: =(1+C$8)*B112 -> 6579.426184 | D112: 0.0264181062 | E112: =($F$4*$F$7*(14.59+A112)*(D112/($F$6*$F$5))^0.5) -> 3885.676139 | F112: =E112*(1+$C$8) -> 5828.514209 | G112: 500.6079835 | H112: 0.02628129147 | I112: 443.597 | J112: 4319.198461 | K112: 6478.797692 | L112: 6094.168243 | X112: 100 | Y112: 0.002946385132 | Z112: 8418.964982 | AA112: 12628.44747 | AB112: 10544.87693 | AC112: 0.005859838933 | AD112: 11872.89933 | AE112: 17809.34899 | AF112: 15633.31056 | AM112: 0.002946385685 | AN112: 1933.38 | AO112: 10352.34577 | AP112: 15528.51866 | AQ112: 12966.46346 | AR112: 0.005859839714 | AS112: 1933.38 | AT112: 13806.28012 | AU112: 20709.42018 | AV112: 17292.56641
X113: 101 | Y113: 0.002920895166 | Z113: 8455.620349 | AA113: 12683.43052 | AB113: 10590.78831 | AC113: 0.005809143899 | AD113: 11924.59279 | AE113: 17886.88919 | AF113: 15701.3765 | AM113: 0.002920895715 | AN113: 1957.4373 | AO113: 10413.05844 | AP113: 15619.58766 | AQ113: 13042.50696 | AR113: 0.005809144674 | AS113: 1957.4373 | AT113: 13882.03089 | AU113: 20823.04634 | AV113: 17387.44535
X114: 102 | Y114: 0.002895842459 | Z114: 8492.117499 | AA114: 12738.17625 | AB114: 10636.50153 | AC114: 0.005759318495 | AD114: 11976.06313 | AE114: 17964.0947 | AF114: 15769.14864 | AM114: 0.002895843003 | AN114: 1981.5512 | AO114: 10473.6695 | AP114: 15710.50424 | AQ114: 13118.42319 | AR114: 0.005759319263 | AS114: 1981.5512 | AT114: 13957.61513 | AU114: 20936.4227 | AV114: 17482.11571
X115: 103 | Y115: 0.002871215854 | Z115: 8528.458462 | AA115: 12792.68769 | AB115: 10682.01912 | AC115: 0.005710340533 | AD115: 12027.31321 | AE115: 18040.96982 | AF115: 15836.63076 | AM115: 0.002871216393 | AN115: 2005.7217 | AO115: 10534.18096 | AP115: 15801.27144 | AQ115: 13194.21468 | AR115: 0.005710341295 | AS115: 2005.7217 | AT115: 14033.03571 | AU115: 21049.55357 | AV115: 17576.58108
X116: 104 | Y116: 0.002847004573 | Z116: 8564.645227 | AA116: 12846.96784 | AB116: 10727.34357 | AC116: 0.005662188577 | AD116: 12078.34583 | AE116: 18117.51874 | AF116: 15903.82654 | AM116: 0.002847005108 | AN116: 2029.9488 | AO116: 10594.59483 | AP116: 15891.89225 | AQ116: 13269.88393 | AR116: 0.005662189332 | AS116: 2029.9488 | AT116: 14108.29543 | AU116: 21162.44315 | AV116: 17670.84497
X117: 105 | Y117: 0.002823198196 | Z117: 8600.67974 | AA117: 12901.01961 | AB117: 10772.47732 | AC117: 0.005614841904 | AD117: 12129.16373 | AE117: 18193.7456 | AF117: 15970.7396 | AM117: 0.002823198726 | AN117: 2054.2325 | AO117: 10654.91305 | AP117: 15982.36957 | AQ117: 13345.43337 | AR117: 0.005614842653 | AS117: 2054.2325 | AT117: 14183.39704 | AU117: 21275.09556 | AV117: 17764.91083
X118: 106 | Y118: 0.002799786651 | Z118: 8636.563907 | AA118: 12954.84586 | AB118: 10817.42277 | AC118: 0.005568280482 | AD118: 12179.76961 | AE118: 18269.65441 | AF118: 16037.37348 | AM118: 0.002799787177 | AN118: 2078.5728 | AO118: 10715.13752 | AP118: 16072.70628 | AQ118: 13420.86539 | AR118: 0.005568281225 | AS118: 2078.5728 | AT118: 14258.34322 | AU118: 21387.51483 | AV118: 17858.78201
X119: 107 | Y119: 0.002776760197 | Z119: 8672.299594 | AA119: 13008.44939 | AB119: 10862.18224 | AC119: 0.005522484936 | AD119: 12230.16609 | AE119: 18345.24913 | AF119: 16103.73165 | AM119: 0.002776760718 | AN119: 2102.9697 | AO119: 10775.27011 | AP119: 16162.90516 | AQ119: 13496.18234 | AR119: 0.005522485672 | AS119: 2102.9697 | AT119: 14333.1366 | AU119: 21499.70491 | AV119: 17952.46181
X120: 108 | Y120: 0.002754109408 | Z120: 8707.888629 | AA120: 13061.83294 | AB120: 10906.75803 | AC120: 0.005477436523 | AD120: 12280.35575 | AE120: 18420.53363 | AF120: 16169.8175 | AM120: 0.002754109925 | AN120: 2127.4232 | AO120: 10835.31265 | AP120: 16252.96897 | AQ120: 13571.38649 | AR120: 0.005477437253 | AS120: 2127.4232 | AT120: 14407.77977 | AU120: 21611.66966 | AV120: 18045.95346
X121: 109 | Y121: 0.002731825166 | Z121: 8743.332802 | AA121: 13114.9992 | AB121: 10951.15237 | AC121: 0.005433117108 | AD121: 12330.34113 | AE121: 18495.51169 | AF121: 16235.63435 | AM121: 0.002731825679 | AN121: 2151.9333 | AO121: 10895.26692 | AP121: 16342.90039 | AQ121: 13646.48009 | AR121: 0.005433117832 | AS121: 2151.9333 | AT121: 14482.27525 | AU121: 21723.41287 | AV121: 18139.26012
X122: 110 | Y122: 0.002709898646 | Z122: 8778.63387 | AA122: 13167.9508 | AB122: 10995.36748 | AC122: 0.005389509137 | AD122: 12380.12468 | AE122: 18570.18702 | AF122: 16301.18547 | AM122: 0.002709899155 | AN122: 2176.5 | AO122: 10955.13469 | AP122: 16432.70204 | AQ122: 13721.46534 | AR122: 0.005389509855 | AS122: 2176.5 | AT122: 14556.62551 | AU122: 21834.93826 | AV122: 18232.38491
X123: 111 | Y123: 0.002688321302 | Z123: 8813.79355 | AA123: 13220.69033 | AB123: 11039.40549 | AC123: 0.005346595615 | AD123: 12429.70885 | AE123: 18644.56327 | AF123: 16366.47404 | AM123: 0.002688321807 | AN123: 2201.1233 | AO123: 11014.91768 | AP123: 16522.37652 | AQ123: 13796.3444 | AR123: 0.005346596328 | AS123: 2201.1233 | AT123: 14630.83298 | AU123: 21946.24946 | AV123: 18325.33084
X124: 112 | Y124: 0.002667084859 | Z124: 8848.813529 | AA124: 13273.22029 | AB124: 11083.26853 | AC124: 0.005304360086 | AD124: 12479.096 | AE124: 18718.644 | AF124: 16431.5032 | AM124: 0.00266708536 | AN124: 2225.8032 | AO124: 11074.61756 | AP124: 16611.92634 | AQ124: 13871.11937 | AR124: 0.005304360794 | AS124: 2225.8032 | AT124: 14704.90003 | AU124: 22057.35004 | AV124: 18418.1009
X125: 113 | Y125: 0.002646181302 | Z125: 8883.695458 | AA125: 13325.54319 | AB125: 11126.95866 | AC125: 0.005262786608 | AD125: 12528.28846 | AE125: 18792.43269 | AF125: 16496.27601 | AM125: 0.002646181799 | AN125: 2250.5397 | AO125: 11134.23599 | AP125: 16701.35399 | AQ125: 13945.79232 | AR125: 0.00526278731 | AS125: 2250.5397 | AT125: 14778.829 | AU125: 22168.2435 | AV125: 18510.698
X126: 114 | Y126: 0.002625602864 | Z126: 8918.440958 | AA126: 13377.66144 | AB126: 11170.4779 | AC126: 0.005221859735 | AD126: 12577.28853 | AE126: 18865.93279 | AF126: 16560.79548 | AM126: 0.002625603357 | AN126: 2275.3328 | AO126: 11193.7746 | AP126: 16790.66189 | AQ126: 14020.36529 | AR126: 0.005221860431 | AS126: 2275.3328 | AT126: 14852.62216 | AU126: 22278.93325 | AV126: 18603.12502
X127: 115 | Y127: 0.002605342019 | Z127: 8953.051617 | AA127: 13429.57742 | AB127: 11213.82826 | AC127: 0.005181564498 | AD127: 12626.09843 | AE127: 18939.14764 | AF127: 16625.06457 | AM127: 0.002605342509 | AN127: 2300.1825 | AO127: 11253.23496 | AP127: 16879.85244 | AQ127: 14094.84025 | AR127: 0.005181565189 | AS127: 2300.1825 | AT127: 14926.28177 | AU127: 22389.42266 | AV127: 18695.38474
X128: 116 | Y128: 0.002585391472 | Z128: 8987.528992 | AA128: 13481.29349 | AB128: 11257.01168 | AC128: 0.005141886387 | AD128: 12674.72037 | AE128: 19012.08055 | AF128: 16689.08616 | AM128: 0.002585391957 | AN128: 2325.0888 | AO128: 11312.61864 | AP128: 16968.92795 | AQ128: 14169.21917 | AR128: 0.005141887073 | AS128: 2325.0888 | AT128: 14999.81001 | AU128: 22499.71502 | AV128: 18787.47993
X129: 117 | Y129: 0.002565744147 | Z129: 9021.874611 | AA129: 13532.81192 | AB129: 11300.03007 | AC129: 0.005102811333 | AD129: 12723.1565 | AE129: 19084.73475 | AF129: 16752.86309 | AM129: 0.002565744629 | AN129: 2350.0517 | AO129: 11371.92716 | AP129: 17057.89074 | AQ129: 14243.50396 | AR129: 0.005102812014 | AS129: 2350.0517 | AT129: 15073.20905 | AU129: 22609.81357 | AV129: 18879.41329
X130: 118 | Y130: 0.002546393184 | Z130: 9056.089974 | AA130: 13584.13496 | AB130: 11342.88531 | AC130: 0.005064325691 | AD130: 12771.40893 | AE130: 19157.1134 | AF130: 16816.39814 | AM130: 0.002546393662 | AN130: 2375.0712 | AO130: 11431.16202 | AP130: 17146.74304 | AQ130: 14317.69649 | AR130: 0.005064326366 | AS130: 2375.0712 | AT130: 15146.48098 | AU130: 22719.72148 | AV130: 18971.18746
X131: 119 | Y131: 0.002527331928 | Z131: 9090.176552 | AA131: 13635.26483 | AB131: 11385.57925 | AC131: 0.005026416224 | AD131: 12819.47975 | AE131: 19229.21962 | AF131: 16879.69405 | AM131: 0.002527332403 | AN131: 2400.1473 | AO131: 11490.32471 | AP131: 17235.48706 | AQ131: 14391.79861 | AR131: 0.005026416894 | AS131: 2400.1473 | AT131: 15219.6279 | AU131: 22829.44185 | AV131: 19062.80504
X132: 120 | Y132: 0.002508553921 | Z132: 9124.135788 | AA132: 13686.20368 | AB132: 11428.11369 | AC132: 0.004989070089 | AD132: 12867.37098 | AE132: 19301.05647 | AF132: 16942.7535 | AM132: 0.002508554393 | AN132: 2425.28 | AO132: 11549.41664 | AP132: 17324.12497 | AQ132: 14465.81212 | AR132: 0.004989070755 | AS132: 2425.28 | AT132: 15292.65184 | AU132: 22938.97775 | AV132: 19154.26857
X133: 121 | Y133: 0.002490052897 | Z133: 9157.969098 | AA133: 13736.95365 | AB133: 11470.49041 | AC133: 0.004952274824 | AD133: 12915.08462 | AE133: 19372.62693 | AF133: 17005.57911 | AM133: 0.002490053365 | AN133: 2450.4693 | AO133: 11608.43926 | AP133: 17412.65889 | AQ133: 14539.7388 | AR133: 0.004952275484 | AS133: 2450.4693 | AT133: 15365.55478 | AU133: 23048.33217 | AV133: 19245.58057
X134: 122 | Y134: 0.002471822771 | Z134: 9191.677873 | AA134: 13787.51681 | AB134: 11512.71114 | AC134: 0.004916018327 | AD134: 12962.62264 | AE134: 19443.93395 | AF134: 17068.17348 | AM134: 0.002471823235 | AN134: 2475.7152 | AO134: 11667.39394 | AP134: 17501.0909 | AQ134: 14613.58039 | AR134: 0.004916018983 | AS134: 2475.7152 | AT134: 15438.3387 | AU134: 23157.50805 | AV134: 19336.74349
X135: 123 | Y135: 0.002453857637 | Z135: 9225.263479 | AA135: 13837.89522 | AB135: 11554.7776 | AC135: 0.004880288853 | AD135: 13009.98695 | AE135: 19514.98043 | AF135: 17130.53912 | AM135: 0.002453858098 | AN135: 2501.0177 | AO135: 11726.28205 | AP135: 17589.42307 | AQ135: 14687.3386 | AR135: 0.004880289504 | AS135: 2501.0177 | AT135: 15511.00552 | AU135: 23266.50828 | AV135: 19427.75973
X136: 124 | Y136: 0.002436151759 | Z136: 9258.727255 | AA136: 13888.09088 | AB136: 11596.69147 | AC136: 0.004845074993 | AD136: 13057.17946 | AE136: 19585.76918 | AF136: 17192.67854 | AM136: 0.002436152217 | AN136: 2526.3768 | AO136: 11785.10492 | AP136: 17677.65739 | AQ136: 14761.01511 | AR136: 0.00484507564 | AS136: 2526.3768 | AT136: 15583.55713 | AU136: 23375.33569 | AV136: 19518.63168
X137: 125 | Y137: 0.002418699565 | Z137: 9292.070518 | AA137: 13938.10578 | AB137: 11638.4544 | AC137: 0.004810365666 | AD137: 13104.20201 | AE137: 19656.30301 | AF137: 17254.59418 | AM137: 0.002418700019 | AN137: 2551.7925 | AO137: 11843.86389 | AP137: 17765.79584 | AQ137: 14834.61157 | AR137: 0.004810366308 | AS137: 2551.7925 | AT137: 15655.99538 | AU137: 23483.99307 | AV137: 19609.36164
